{"text_format":"1","workbook":"xlsx","n_sheets":9,"sheets":["Kahena E-commerce","Traffic and Goals","User Engagement Data","Landing Page Data","Google Indexing","offset example","Ranking Analysis","Raw Ranking Data","Tag Ranking Analysis"],"not_rendered":{"charts":7,"images":2,"macros":0,"external_links":0,"defined_names":1,"comments":0,"pivot_tables":0},"unopened":[],"bounds":{"document_bytes":16777216,"sheet_cells":100000,"rows_first":2000,"rows_last":500,"rows_between":2000,"halvings":0,"cell_chars":16384,"cell_head_chars":4096},"cells_cut":0,"cells_raw":0,"read":"whole","date_system":"1900"}

{"sheet":"Kahena E-commerce","index":0,"n_rows":138,"n_cols":10,"rows_kept":138,"cut":false,"hidden":false,"merged":[[72,6,72,9],[72,10,72,11],[52,1,53,3],[54,1,55,3],[43,8,43,11],[44,1,45,3],[46,1,47,3],[48,1,49,3],[50,1,51,3]]}
[]
[]
[]
[]
[null,"Campaign Activity Updates"]
[]
[]
[]
[]
[]
[null,null,null,null,null,null," "]
[null,"Organic Search KPIs"]
[]
[]
[]
[]
[]
[]
[]
[]
[]
[]
[]
[]
[]
[]
[]
[]
[]
[]
[]
[]
[]
[]
[]
[]
[]
[]
[]
[]
[]
[]
[null,"Landing Page Analysis"]
[null,"URL (or Category)",null,null,null,"Last Month","This Month","D","Landing Page Percentage Breakdown"]
[null,{"$f":"'Landing Page Data'!B4","v":"test"},null,null,"Organic",{"$f":"'Landing Page Data'!E4","v":0},{"$f":"'Landing Page Data'!F4","v":1},{"$f":"'Landing Page Data'!G4","v":"NA"}]
[null,null,null,null,"Total",{"$f":"'Landing Page Data'!E5","v":0},{"$f":"'Landing Page Data'!F5","v":0},{"$f":"'Landing Page Data'!G5","v":"NA"}]
[null,{"$f":"'Landing Page Data'!B6","v":0},null,null,"Organic",{"$f":"'Landing Page Data'!E6","v":0},{"$f":"'Landing Page Data'!F6","v":0},{"$f":"'Landing Page Data'!G6","v":"NA"}]
[null,null,null,null,"Total",{"$f":"'Landing Page Data'!E7","v":0},{"$f":"'Landing Page Data'!F7","v":0},{"$f":"'Landing Page Data'!G7","v":"NA"}]
[null,{"$f":"'Landing Page Data'!B8","v":0},null,null,"Organic",{"$f":"'Landing Page Data'!E8","v":0},{"$f":"'Landing Page Data'!F8","v":0},{"$f":"'Landing Page Data'!G8","v":"NA"}]
[null,null,null,null,"Total",{"$f":"'Landing Page Data'!E9","v":0},{"$f":"'Landing Page Data'!F9","v":0},{"$f":"'Landing Page Data'!G9","v":"NA"}]
[null,{"$f":"'Landing Page Data'!B10","v":0},null,null,"Organic",{"$f":"'Landing Page Data'!E10","v":0},{"$f":"'Landing Page Data'!F10","v":0},{"$f":"'Landing Page Data'!G10","v":"NA"}]
[null,null,null,null,"Total",{"$f":"'Landing Page Data'!E11","v":0},{"$f":"'Landing Page Data'!F11","v":0},{"$f":"'Landing Page Data'!G11","v":"NA"}]
[null,{"$f":"'Landing Page Data'!B12","v":0},null,null,"Organic",{"$f":"'Landing Page Data'!E12","v":0},{"$f":"'Landing Page Data'!F12","v":0},{"$f":"'Landing Page Data'!G12","v":"NA"}]
[null,null,null,null,"Total",{"$f":"'Landing Page Data'!E13","v":0},{"$f":"'Landing Page Data'!F13","v":0},{"$f":"'Landing Page Data'!G13","v":"NA"}]
[null,{"$f":"'Landing Page Data'!B14","v":0},null,null,"Organic",{"$f":"'Landing Page Data'!E14","v":0},{"$f":"'Landing Page Data'!F14","v":0},{"$f":"'Landing Page Data'!G14","v":"NA"}]
[null,null,null,null,"Total",{"$f":"'Landing Page Data'!E15","v":0},{"$f":"'Landing Page Data'!F15","v":0},{"$f":"'Landing Page Data'!G15","v":"NA"}]
[]
[]
[]
[]
[]
[]
[null,"Rankings Summary Report"]
[null,null,null,"Google","Bing","Yahoo",{"$f":"'Ranking Analysis'!D18","v":"admission"},{"$f":"'Ranking Analysis'!E18","v":"consulting"},{"$f":"'Ranking Analysis'!F18","v":"essay"},{"$f":"'Ranking Analysis'!G18","v":"howto"}]
[null,"Total Targeted Keywords",null,{"$f":"'Ranking Analysis'!E17","v":100},{"$f":"'Ranking Analysis'!F17","v":100},{"$f":"'Ranking Analysis'!G17","v":100},{"$f":"'Ranking Analysis'!D19","v":0},{"$f":"'Ranking Analysis'!E19","v":0},{"$f":"'Ranking Analysis'!F19","v":0},{"$f":"'Ranking Analysis'!G19","v":0}]
[null,{"$f":"'Ranking Analysis'!O6","v":"Above the Fold Results (Positions 1-5)"},null,{"$f":"'Ranking Analysis'!P12","v":0},{"$f":"'Ranking Analysis'!P18","v":0},{"$f":"'Ranking Analysis'!P24","v":0},{"$f":"'Ranking Analysis'!P30","v":0},{"$f":"'Ranking Analysis'!P36","v":0},{"$f":"'Ranking Analysis'!P42","v":0},{"$f":"'Ranking Analysis'!P48","v":0}]
[null,{"$f":"'Ranking Analysis'!O7","v":"Positions 6-10"},null,{"$f":"'Ranking Analysis'!P13","v":0},{"$f":"'Ranking Analysis'!P19","v":0},{"$f":"'Ranking Analysis'!P25","v":0},{"$f":"'Ranking Analysis'!P31","v":0},{"$f":"'Ranking Analysis'!P37","v":0},{"$f":"'Ranking Analysis'!P43","v":0},{"$f":"'Ranking Analysis'!P49","v":0}]
[null,{"$f":"'Ranking Analysis'!O8","v":"Positions 11-30"},null,{"$f":"'Ranking Analysis'!P14","v":0},{"$f":"'Ranking Analysis'!P20","v":0},{"$f":"'Ranking Analysis'!P26","v":0},{"$f":"'Ranking Analysis'!P32","v":0},{"$f":"'Ranking Analysis'!P38","v":0},{"$f":"'Ranking Analysis'!P44","v":0},{"$f":"'Ranking Analysis'!P50","v":0}]
[null,{"$f":"'Ranking Analysis'!O9","v":"Total Ranked Keywords in Top 30 Results"},null,{"$f":"'Ranking Analysis'!P15","v":0},{"$f":"'Ranking Analysis'!P27","v":0},{"$f":"'Ranking Analysis'!P21","v":0},{"$f":"'Ranking Analysis'!P33","v":0},{"$f":"'Ranking Analysis'!P39","v":0},{"$f":"'Ranking Analysis'!P45","v":0},{"$f":"'Ranking Analysis'!P51","v":0}]
[null,{"$f":"'Ranking Analysis'!O10","v":"% of Ranked Keywords in Top 30 Results"},null,{"$f":"'Ranking Analysis'!P16","v":0},{"$f":"'Ranking Analysis'!P28","v":0},{"$f":"'Ranking Analysis'!P22","v":0},{"$f":"'Ranking Analysis'!P34","v":0},{"$f":"'Ranking Analysis'!P40","v":0},{"$f":"'Ranking Analysis'!P46","v":0},{"$f":"'Ranking Analysis'!P52","v":0}]
[]
[null,null,null,null,{"$f":"'Tag Ranking Analysis'!AD1","v":0}]
[]
[]
[]
[]
[]
[]
[]
[]
[]
[]
[]
[null,"Rankings Summary cont."]
[]
[null,"Campaign Focus Keyword Change this Month (Google)"]
[null,"Keyword",null,"Rank","Change","Volume"]
[null,{"$f":"'Tag Ranking Analysis'!L24","v":"Example Keyword 1"},null,{"$f":"'Tag Ranking Analysis'!M24","v":{"$error":"#N/A"}},{"$f":"'Tag Ranking Analysis'!N24","v":{"$error":"#N/A"}},{"$f":"'Tag Ranking Analysis'!O24","v":{"$error":"#N/A"}}]
[null,{"$f":"'Tag Ranking Analysis'!L25","v":"Example Keyword 2"},null,{"$f":"'Tag Ranking Analysis'!M25","v":{"$error":"#N/A"}},{"$f":"'Tag Ranking Analysis'!N25","v":{"$error":"#N/A"}},{"$f":"'Tag Ranking Analysis'!O25","v":{"$error":"#N/A"}}]
[null,{"$f":"'Tag Ranking Analysis'!L26","v":"Example Keyword 3"},null,{"$f":"'Tag Ranking Analysis'!M26","v":{"$error":"#N/A"}},{"$f":"'Tag Ranking Analysis'!N26","v":{"$error":"#N/A"}},{"$f":"'Tag Ranking Analysis'!O26","v":{"$error":"#N/A"}}]
[null,{"$f":"'Tag Ranking Analysis'!L27","v":"Example Keyword 4"},null,{"$f":"'Tag Ranking Analysis'!M27","v":{"$error":"#N/A"}},{"$f":"'Tag Ranking Analysis'!N27","v":{"$error":"#N/A"}},{"$f":"'Tag Ranking Analysis'!O27","v":{"$error":"#N/A"}}]
[null,{"$f":"'Tag Ranking Analysis'!L28","v":"Example Keyword 5"},null,{"$f":"'Tag Ranking Analysis'!M28","v":{"$error":"#N/A"}},{"$f":"'Tag Ranking Analysis'!N28","v":{"$error":"#N/A"}},{"$f":"'Tag Ranking Analysis'!O28","v":{"$error":"#N/A"}}]
[null,{"$f":"'Tag Ranking Analysis'!L29","v":"Example Keyword 6"},null,{"$f":"'Tag Ranking Analysis'!M29","v":{"$error":"#N/A"}},{"$f":"'Tag Ranking Analysis'!N29","v":{"$error":"#N/A"}},{"$f":"'Tag Ranking Analysis'!O29","v":{"$error":"#N/A"}}]
[null,{"$f":"'Tag Ranking Analysis'!L30","v":"Example Keyword 7"},null,{"$f":"'Tag Ranking Analysis'!M30","v":{"$error":"#N/A"}},{"$f":"'Tag Ranking Analysis'!N30","v":{"$error":"#N/A"}},{"$f":"'Tag Ranking Analysis'!O30","v":{"$error":"#N/A"}}]
[null,{"$f":"'Tag Ranking Analysis'!L31","v":"Example Keyword 8"},null,{"$f":"'Tag Ranking Analysis'!M31","v":{"$error":"#N/A"}},{"$f":"'Tag Ranking Analysis'!N31","v":{"$error":"#N/A"}},{"$f":"'Tag Ranking Analysis'!O31","v":{"$error":"#N/A"}}]
[null,{"$f":"'Tag Ranking Analysis'!L32","v":"Example Keyword 9"},null,{"$f":"'Tag Ranking Analysis'!M32","v":{"$error":"#N/A"}},{"$f":"'Tag Ranking Analysis'!N32","v":{"$error":"#N/A"}},{"$f":"'Tag Ranking Analysis'!O32","v":{"$error":"#N/A"}}]
[null,{"$f":"'Tag Ranking Analysis'!L33","v":"Example Keyword 10"},null,{"$f":"'Tag Ranking Analysis'!M33","v":{"$error":"#N/A"}},{"$f":"'Tag Ranking Analysis'!N33","v":{"$error":"#N/A"}},{"$f":"'Tag Ranking Analysis'!O33","v":{"$error":"#N/A"}}]
[null,{"$f":"'Tag Ranking Analysis'!L34","v":"Example Keyword 11"},null,{"$f":"'Tag Ranking Analysis'!M34","v":{"$error":"#N/A"}},{"$f":"'Tag Ranking Analysis'!N34","v":{"$error":"#N/A"}},{"$f":"'Tag Ranking Analysis'!O34","v":{"$error":"#N/A"}}]
[null,{"$f":"'Tag Ranking Analysis'!L35","v":"Example Keyword 12"},null,{"$f":"'Tag Ranking Analysis'!M35","v":{"$error":"#N/A"}},{"$f":"'Tag Ranking Analysis'!N35","v":{"$error":"#N/A"}},{"$f":"'Tag Ranking Analysis'!O35","v":{"$error":"#N/A"}}]
[null,{"$f":"'Tag Ranking Analysis'!L36","v":"Example Keyword 13"},null,{"$f":"'Tag Ranking Analysis'!M36","v":{"$error":"#N/A"}},{"$f":"'Tag Ranking Analysis'!N36","v":{"$error":"#N/A"}},{"$f":"'Tag Ranking Analysis'!O36","v":{"$error":"#N/A"}}]
[null,{"$f":"'Tag Ranking Analysis'!L37","v":"Example Keyword 14"},null,{"$f":"'Tag Ranking Analysis'!M37","v":{"$error":"#N/A"}},{"$f":"'Tag Ranking Analysis'!N37","v":{"$error":"#N/A"}},{"$f":"'Tag Ranking Analysis'!O37","v":{"$error":"#N/A"}}]
[null,{"$f":"'Tag Ranking Analysis'!L38","v":"Example Keyword 15"},null,{"$f":"'Tag Ranking Analysis'!M38","v":{"$error":"#N/A"}},{"$f":"'Tag Ranking Analysis'!N38","v":{"$error":"#N/A"}},{"$f":"'Tag Ranking Analysis'!O38","v":{"$error":"#N/A"}}]
[]
[]
[null,"On-site Metrics  (Indexation & User Engagement)"]
[]
[]
[]
[]
[]
[]
[]
[]
[]
[]
[]
[]
[]
[null,"Data Highlights and Observations"]
[]
[]
[]
[]
[]
[]
[]
[]
[]
[]
[]
[]
[]
[]
[]
[]
[]
[]
[null,"SEO Industry News"]

{"sheet":"Traffic and Goals","index":1,"n_rows":16,"n_cols":14,"rows_kept":16,"cut":false,"hidden":false,"merged":[[2,2,2,6],[2,9,2,13]]}
[]
[]
[null,null,"TRAFFIC",null,null,null,null,null,null,"Goals and Conversions"]
[null,null,"Organic Search","Total","Google","Bing","Yahoo","Other",null,null,"Transactions",null,null,"Revenue"]
[null,null,"January",null,null,null,null,{"$f":"D5-E5-F5-G5","v":0},null,"January",null,null,"January"]
[null,null,"February",null,null,null,null,{"$f":"D6-E6-F6-G6","v":0},null,"February",null,null,"February"]
[null,null,"March",null,null,null,null,0,null,"March",null,null,"March"]
[null,null,"April",null,null,null,null,0,null,"April",null,null,"April"]
[null,null,"May",null,null,null,null,0,null,"May",null,null,"May"]
[null,null,"June",null,null,null,null,0,null,"June",null,null,"June"]
[null,null,"July",null,null,null,null,0,null,"July",null,null,"July"]
[null,null,"August",null,null,null,null,0,null,"August",null,null,"August"]
[null,null,"September",null,null,null,null,0,null,"September",null,null,"September"]
[null,null,"October",null,null,null,null,0,null,"October",null,null,"October"]
[null,null,"November",null,null,null,null,0,null,"November",null,null,"November"]
[null,null,"December",null,null,null,null,0,null,"December",null,null,"December"]

{"sheet":"User Engagement Data","index":2,"n_rows":30,"n_cols":17,"rows_kept":30,"cut":false,"hidden":false,"merged":[]}
["Source: Rank Ranger (monthly report)",null,null,null,null,"Graph 1",null,null,null,null,null,null,null,1,null,"Graph 2","Time Spent on Site in Seconds"]
["(client name) SEO Overview",null,null,null,null,"Month","Total Organic Visits","Total Pages Viewed 2013","Bounce Rate","Time Spend on Site (#.##)","Pages/Visits","formula part 2","formula part 1",null,null,"Month",2013]
[null,"January",2013,{"$f":"$A$2&\" \"&B3&\" \"&C3","v":"(client name) SEO Overview January 2013"},"January Engagement Data","January",null,null,null,null,{"$f":"H3/G3","v":{"$error":"#DIV/0!"}},{"$f":"(J3-M3)","v":0},{"$f":"ROUNDDOWN(J3,0)","v":0},null,null,"January",{"$f":"(M3*60)+(L3*100)","v":0}]
[null,"February",2013,{"$f":"$A$2&\" \"&B4&\" \"&C4","v":"(client name) SEO Overview February 2013"},"February Engagement Data","February",null,null,null,null,{"$error":"#DIV/0!"},0,0,null,null,"February",0]
[null,"March",2013,"(client name) SEO Overview March 2013","March Engagement Data","March",null,null,null,null,{"$f":"H5/G5","v":{"$error":"#DIV/0!"}},0,0,null,null,"March",0]
[null,"April",2013,"(client name) SEO Overview April 2013","April Engagement Data","April",null,null,null,null,{"$f":"H6/G6","v":{"$error":"#DIV/0!"}},0,0,null,null,"April",0]
[null,"May",2013,"(client name) SEO Overview May 2013","May Engagement Data","May",null,null,null,null,{"$error":"#DIV/0!"},0,0,null,null,"May",0]
[null,"June",2013,"(client name) SEO Overview June 2013","June Engagement Data","June",null,null,null,null,{"$error":"#DIV/0!"},0,0,null,null,"June",0]
[null,"July",2013,"(client name) SEO Overview July 2013","July Engagement Data","July",null,null,null,null,{"$error":"#DIV/0!"},0,0,null,null,"July",0]
[null,"August",2013,"(client name) SEO Overview August 2013","August Engagement Data","August",null,null,null,null,0,0,0,null,null,"August"]
[null,"September",2014,"(client name) SEO Overview September 2014","September Engagement Data","September",null,null,null,null,0,0,0,null,null,"September"]
[null,"October",2014,"(client name) SEO Overview October 2014","October Engagement Data","October",null,null,null,null,0,0,0,null,null,"October"]
[null,"November",2014,"(client name) SEO Overview November 2014","November Engagement Data","November",null,null,null,null,0,0,0,null,null,"November"]
[null,"December",2014,"(client name) SEO Overview December 2014","December Engagement Data","December",null,null,null,null,0,0,0,null,null,"December"]
[]
[null,null,null,null,null,{"$f":"OFFSET(E2,$N$1,0)","v":"January Engagement Data"}]
[null,null,null,null,null,null,"END"]
[null,null,null,{"$f":"B3&\" Engagement Data\"","v":"January Engagement Data"},null,{"$f":"OFFSET($D$2,N1,0)","v":"(client name) SEO Overview January 2013"}]
[null,null,null,{"$f":"B4&\" Engagement Data\"","v":"February Engagement Data"}]
[null,null,null,"March Engagement Data",null,"Date","Total Organic Visits","Total Pages Viewed","Bounce Rate","Pages/Visits","Time Spend on Site (#.##)"]
[null,null,null,"April Engagement Data",null,{"$f":"OFFSET(E$2,$N$1,0)","v":"January Engagement Data"},{"$f":"OFFSET(G$2,$N$1,0)","v":0},{"$f":"OFFSET(H$2,$N$1,0)","v":0},{"$f":"OFFSET(I$2,$N$1,0)","v":0},{"$f":"OFFSET(K$2,$N$1,0)","v":{"$error":"#DIV/0!"}},{"$f":"OFFSET(J$2,$N$1,0)","v":0}]
[null,null,null,"May Engagement Data"]
[null,null,null,"June Engagement Data"]
[null,null,null,"July Engagement Data"]
[null,null,null,"August Engagement Data"]
[null,null,null,"September Engagement Data"]
[null,null,null,"October Engagement Data"]
[null,null,null,"November Engagement Data"]
[null,null,null,"December Engagement Data"]
[null,null,null," Engagement Data"]

{"sheet":"Landing Page Data","index":3,"n_rows":26,"n_cols":23,"rows_kept":26,"cut":false,"hidden":false,"merged":[]}
[]
[null,null,null,null,null,null,null,null,null,null,null,"This Month"]
[null,"URL (or Category)",null,null,"Last Month","This Month","D",null," ",{"$f":"F4","v":1},null,"Landing Page","Date Range","Segment","Visits","% New Visits","New Visits","Bounce Rate","Pages / Visit","Avg. Visit Duration","Quote Request (Goal 1 Conversion Rate)","Quote Request (Goal 1 Completions)","Quote Request (Goal 1 Value)"]
[null,{"$f":"L4","v":"test"},null,"Non-paid Search Traffic",{"$f":"O6","v":0},{"$f":"O4","v":1},{"$f":"IFERROR(PRODUCT(F4-E4)/E4,\"NA\")","v":"NA"},null," ",{"$f":"F6","v":0},null,"test",null,null,1]
[null,null,null,"All Visits",{"$f":"O7","v":0},{"$f":"O5","v":0},"NA",null," ",{"$f":"F8","v":0}]
[null,{"$f":"L8","v":0},null,"Non-paid Search Traffic",{"$f":"O10","v":0},{"$f":"O8","v":0},"NA",null," ",{"$f":"F10","v":0}]
[null,null,null,"All Visits",{"$f":"O11","v":0},{"$f":"O9","v":0},"NA",null," ",{"$f":"F12","v":0}]
[null,{"$f":"L12","v":0},null,"Non-paid Search Traffic",{"$f":"O14","v":0},{"$f":"O12","v":0},"NA",null," ",{"$f":"F14","v":0}]
[null,null,null,"All Visits",{"$f":"O15","v":0},{"$f":"O13","v":0},"NA",null," ",{"$f":"J10-SUM(J3:J8)","v":4904}]
[null,{"$f":"L16","v":0},null,"Non-paid Search Traffic",{"$f":"O18","v":0},{"$f":"O16","v":0},"NA",null,"Total Landing Page",4905]
[null,null,null,"All Visits",{"$f":"O19","v":0},{"$f":"O17","v":0},"NA"]
[null,{"$f":"L20","v":0},null,"Non-paid Search Traffic",{"$f":"O22","v":0},{"$f":"O20","v":0},"NA"]
[null,null,null,"All Visits",{"$f":"O23","v":0},{"$f":"O21","v":0},"NA"]
[null,{"$f":"L24","v":0},null,"Non-paid Search Traffic",{"$f":"O26","v":0},{"$f":"O24","v":0},"NA"]
[null,null,null,"All Visits",{"$f":"O27","v":0},{"$f":"O25","v":0},"NA"]
[]
[]
[]
[]
[]
[]
[]
[]
[]
[]
[null,{"$f":"B4","v":"test"}]

{"sheet":"Google Indexing","index":4,"n_rows":1,"n_cols":2,"rows_kept":1,"cut":false,"hidden":false,"merged":[]}
["Date","Total indexed"]

{"sheet":"offset example","index":5,"n_rows":11,"n_cols":14,"rows_kept":11,"cut":false,"hidden":true,"merged":[]}
[]
[]
[null,null,1,2,3,4,5,6,7,8,9]
[null,null,2,{"$f":"D$3*$C4","v":4},{"$f":"E$3*$C4","v":6},8,10,12,14,16,18,"row",2,{"$f":"OFFSET($B$2,M4,M5)","v":6}]
[null,null,3,{"$f":"D$3*$C5","v":6},9,12,15,18,21,24,27,"column",3]
[null,null,4,8,12,16,20,24,28,32,36]
[null,null,5,10,15,20,25,30,35,40,45]
[null,null,6,12,18,24,30,36,42,48,54]
[null,null,7,14,21,28,35,42,49,56,63]
[null,null,8,16,24,32,40,48,56,64,72]
[null,null,9,18,27,36,45,54,63,72,81]

{"sheet":"Ranking Analysis","index":6,"n_rows":117,"n_cols":28,"rows_kept":117,"cut":false,"hidden":true,"merged":[[15,8,15,9]]}
[null,null,null,null,null,null,null,null,null,null,null,null,null,"MONTH","2013-10-01"]
[null,null,null,null,null,null,null,null,null,null,null,null,null,"Offset",4]
[]
[]
[null,null,null,null,null,null,null,null,null,null,null,null,null,null,"Total",{"$f":"$O$1","v":"2013-10-01"},"2013-09-01","2013-10-01","2013-11-01","2013-12-01","2014-01-01","2014-02-01","2014-03-01","2014-04-01","2014-05-01","2014-06-01","2014-07-01","2014-08-01"]
[null,null,null,null,null,null,null,null,null,null,null,null,null,null,"Above the Fold Results (Positions 1-5)",{"$f":"P12+P24+P18","v":0},189,58,120,197,208]
[null,null,null,null,null,null,null,null,null,null,null,null,null,null,"Positions 6-10",{"$f":"P13+P25+P19","v":0},10,31,125,8,7]
[null,null,null,null,null,null,null,null,null,null,null,null,null,null,"Positions 11-30",{"$f":"P14+P26+P20","v":0},15,31,232,21,14]
[null,null,null,null,null,null,null,null,null,null,null,null,null,null,"Total Ranked Keywords in Top 30 Results",{"$f":"SUM(P6:P8)","v":0},214,120,477,226,229]
[null,null,null,null,null,null,null,null,null,null,null,null,null,null,"% of Ranked Keywords in Top 30 Results",{"$f":"IFERROR(P9/D17,0)","v":0},0.31149927219796214,0.4,0,0.32896652110625912,0.33333333333333331]
[null,null,null,null,null,null,null,null,null,null,null,null,null,null,"Google",{"$f":"$O$1","v":"2013-10-01"},"2013-09-01","2013-10-01","2013-11-01","2013-12-01","2014-01-01","2014-02-01","2014-03-01","2014-04-01","2014-05-01","2014-06-01","2014-07-01","2014-08-01"]
[null,null,null,null,null,null,null,null,null,null,null,null,null,null,"Above the Fold Results (Positions 1-5)",{"$f":"SUMPRODUCT(('Raw Ranking Data'!$F$24:$F$1048576>=1)*('Raw Ranking Data'!$F$24:$F$1048576<=5))","v":0},66,26,67,69,72]
[null,null,null,null,null,null,null,null,null,null,null,null,null,null,"Positions 6-10",{"$f":"SUMPRODUCT(('Raw Ranking Data'!$F$24:$F$1048576>=6)*('Raw Ranking Data'!$F$24:$F$1048576<=10))","v":0},5,13,74,3,7]
[null,null,null,null,null,null,null,null,null,null,null,null,null,null,"Positions 11-30",{"$f":"SUMPRODUCT(('Raw Ranking Data'!$F$24:$F$1048576>=11)*('Raw Ranking Data'!$F$24:$F$1048576<=30))","v":0},12,18,90,15,8]
[null,null,null,null,null,null,null,null,null,null,null,null,null,null,"Total Ranked Keywords in Top 30 Results",{"$f":"SUM(P12:P14)","v":0},83,57,231,87,87]
[null,null,"Summary Report","Total","Google","Bing","Yahoo",null,"Keyword - Verticles",null,null,null,null,null,"% of Ranked Keywords in Top 30 Results",{"$f":"IFERROR(P15/E17,0)","v":0},0.36244541484716158,0.56999999999999995,0,0.37991266375545851,0.37991266375545851]
[null,1,"Total Targeted Keywords",{"$f":"E17+F17+G17","v":300},100,100,100,null,"KEYWORD","CATEGORY","Google","Bing","Yahoo",null,"Bing",{"$f":"$O$1","v":"2013-10-01"},"2013-09-01","2013-10-01","2013-11-01","2013-12-01","2014-01-01","2014-02-01","2014-03-01","2014-04-01","2014-05-01","2014-06-01","2014-07-01","2014-08-01"]
[null,5,"total Categories",{"$f":"O29","v":"admission"},{"$f":"O35","v":"consulting"},{"$f":"O41","v":"essay"},{"$f":"O47","v":"howto"},null,null,null,{"$f":"VLOOKUP($I18,'Raw Ranking Data'!$D$23:$K$406,3,FALSE)","v":{"$error":"#N/A"}},{"$f":"VLOOKUP($I18,'Raw Ranking Data'!$D$23:$K$406,5,FALSE)","v":{"$error":"#N/A"}},{"$f":"VLOOKUP($I18,'Raw Ranking Data'!$D$23:$K$406,7,FALSE)","v":{"$error":"#N/A"}},null,"Above the Fold Results (Positions 1-5)",{"$f":"SUMPRODUCT(('Raw Ranking Data'!$H$24:$H$1048576>=1)*('Raw Ranking Data'!$H$24:$H$1048576<=5))","v":0},57,20,22,64,68]
[null,6,{"$f":"SUM(D19:G19)","v":0},{"$f":"D20*3","v":0},{"$f":"E20*3","v":0},0,0,null,null,null,{"$f":"VLOOKUP($I19,'Raw Ranking Data'!$D$23:$K$406,3,FALSE)","v":{"$error":"#N/A"}},{"$f":"VLOOKUP($I19,'Raw Ranking Data'!$D$23:$K$406,5,FALSE)","v":{"$error":"#N/A"}},{"$f":"VLOOKUP($I19,'Raw Ranking Data'!$D$23:$K$406,7,FALSE)","v":{"$error":"#N/A"}},null,"Positions 6-10",{"$f":"SUMPRODUCT(('Raw Ranking Data'!$H$24:$H$1048576>=6)*('Raw Ranking Data'!$H$24:$H$1048576<=10))","v":0},3,5,28,2,0]
[null,10,null,{"$f":"COUNTIF($J$17:$J$117,D18)","v":0},{"$f":"COUNTIF($J$17:$J$117,E18)","v":0},0,0,null,null,null,{"$f":"VLOOKUP($I20,'Raw Ranking Data'!$D$23:$K$406,3,FALSE)","v":{"$error":"#N/A"}},{"$f":"VLOOKUP($I20,'Raw Ranking Data'!$D$23:$K$406,5,FALSE)","v":{"$error":"#N/A"}},{"$f":"VLOOKUP($I20,'Raw Ranking Data'!$D$23:$K$406,7,FALSE)","v":{"$error":"#N/A"}},null,"Positions 11-30",{"$f":"SUMPRODUCT(('Raw Ranking Data'!$H$24:$H$1048576>=11)*('Raw Ranking Data'!$H$24:$H$1048576<=30))","v":0},2,1,97,4,3]
[null,11,null,null,null,null,null,null,null,null,{"$f":"VLOOKUP($I21,'Raw Ranking Data'!$D$23:$K$406,3,FALSE)","v":{"$error":"#N/A"}},{"$f":"VLOOKUP($I21,'Raw Ranking Data'!$D$23:$K$406,5,FALSE)","v":{"$error":"#N/A"}},{"$f":"VLOOKUP($I21,'Raw Ranking Data'!$D$23:$K$406,7,FALSE)","v":{"$error":"#N/A"}},null,"Total Ranked Keywords in Top 30 Results",{"$f":"SUM(P18:P20)","v":0},62,26,147,70,71]
[null,30,null,null,null,null,null,null,null,null,{"$f":"VLOOKUP($I22,'Raw Ranking Data'!$D$23:$K$406,3,FALSE)","v":{"$error":"#N/A"}},{"$f":"VLOOKUP($I22,'Raw Ranking Data'!$D$23:$K$406,5,FALSE)","v":{"$error":"#N/A"}},{"$f":"VLOOKUP($I22,'Raw Ranking Data'!$D$23:$K$406,7,FALSE)","v":{"$error":"#N/A"}},null,"% of Ranked Keywords in Top 30 Results",{"$f":"IFERROR(P21/F17,0)","v":0},0.27074235807860264,0,0,0.3056768558951965,0.31004366812227074]
[null,null,null,null,null,null,null,null,null,null,{"$f":"VLOOKUP($I23,'Raw Ranking Data'!$D$23:$K$406,3,FALSE)","v":{"$error":"#N/A"}},{"$f":"VLOOKUP($I23,'Raw Ranking Data'!$D$23:$K$406,5,FALSE)","v":{"$error":"#N/A"}},{"$f":"VLOOKUP($I23,'Raw Ranking Data'!$D$23:$K$406,7,FALSE)","v":{"$error":"#N/A"}},null,"Yahoo",{"$f":"$O$1","v":"2013-10-01"},"2013-09-01","2013-10-01","2013-11-01","2013-12-01","2014-01-01","2014-02-01","2014-03-01","2014-04-01","2014-05-01","2014-06-01","2014-07-01","2014-08-01"]
[null,null,null,null,null,null,null,null,null,null,{"$f":"VLOOKUP($I24,'Raw Ranking Data'!$D$23:$K$406,3,FALSE)","v":{"$error":"#N/A"}},{"$f":"VLOOKUP($I24,'Raw Ranking Data'!$D$23:$K$406,5,FALSE)","v":{"$error":"#N/A"}},{"$f":"VLOOKUP($I24,'Raw Ranking Data'!$D$23:$K$406,7,FALSE)","v":{"$error":"#N/A"}},null,"Above the Fold Results (Positions 1-5)",{"$f":"SUMPRODUCT(('Raw Ranking Data'!$J$24:$J$1048576>=1)*('Raw Ranking Data'!$J$24:$J$1048576<=5))","v":0},66,12,31,64,68]
[null,null,null,null,null,null,null,null,null,null,{"$f":"VLOOKUP($I25,'Raw Ranking Data'!$D$23:$K$406,3,FALSE)","v":{"$error":"#N/A"}},{"$f":"VLOOKUP($I25,'Raw Ranking Data'!$D$23:$K$406,5,FALSE)","v":{"$error":"#N/A"}},{"$f":"VLOOKUP($I25,'Raw Ranking Data'!$D$23:$K$406,7,FALSE)","v":{"$error":"#N/A"}},null,"Positions 6-10",{"$f":"SUMPRODUCT(('Raw Ranking Data'!$J$24:$J$1048576>=6)*('Raw Ranking Data'!$J$24:$J$1048576<=10))","v":0},2,13,23,3,0]
[null,null,null,null,null,null,null,null,null,null,{"$f":"VLOOKUP($I26,'Raw Ranking Data'!$D$23:$K$406,3,FALSE)","v":{"$error":"#N/A"}},{"$f":"VLOOKUP($I26,'Raw Ranking Data'!$D$23:$K$406,5,FALSE)","v":{"$error":"#N/A"}},{"$f":"VLOOKUP($I26,'Raw Ranking Data'!$D$23:$K$406,7,FALSE)","v":{"$error":"#N/A"}},null,"Positions 11-30",{"$f":"SUMPRODUCT(('Raw Ranking Data'!$J$24:$J$1048576>=11)*('Raw Ranking Data'!$J$24:$J$1048576<=30))","v":0},1,12,45,2,3]
[null,null,null,null,null,null,null,null,null,null,{"$f":"VLOOKUP($I27,'Raw Ranking Data'!$D$23:$K$406,3,FALSE)","v":{"$error":"#N/A"}},{"$f":"VLOOKUP($I27,'Raw Ranking Data'!$D$23:$K$406,5,FALSE)","v":{"$error":"#N/A"}},{"$f":"VLOOKUP($I27,'Raw Ranking Data'!$D$23:$K$406,7,FALSE)","v":{"$error":"#N/A"}},null,"Total Ranked Keywords in Top 30 Results",{"$f":"SUM(P24:P26)","v":0},69,37,99,69,71]
[null,null,null,null,null,null,null,null,null,null,{"$f":"VLOOKUP($I28,'Raw Ranking Data'!$D$23:$K$406,3,FALSE)","v":{"$error":"#N/A"}},{"$f":"VLOOKUP($I28,'Raw Ranking Data'!$D$23:$K$406,5,FALSE)","v":{"$error":"#N/A"}},{"$f":"VLOOKUP($I28,'Raw Ranking Data'!$D$23:$K$406,7,FALSE)","v":{"$error":"#N/A"}},null,"% of Ranked Keywords in Top 30 Results",{"$f":"IFERROR(P27/G17,0)","v":0},0.30131004366812225,0.37,0,0.30131004366812225,0.31004366812227074]
[null,null,null,null,null,null,null,null,null,null,{"$f":"VLOOKUP($I29,'Raw Ranking Data'!$D$23:$K$406,3,FALSE)","v":{"$error":"#N/A"}},{"$f":"VLOOKUP($I29,'Raw Ranking Data'!$D$23:$K$406,5,FALSE)","v":{"$error":"#N/A"}},{"$f":"VLOOKUP($I29,'Raw Ranking Data'!$D$23:$K$406,7,FALSE)","v":{"$error":"#N/A"}},null,"admission",{"$f":"$O$1","v":"2013-10-01"},"2013-09-01","2013-10-01","2013-11-01","2013-12-01","2014-01-01","2014-02-01","2014-03-01","2014-04-01","2014-05-01","2014-06-01","2014-07-01","2014-08-01"]
[null,null,null,null,null,null,null,null,null,null,{"$f":"VLOOKUP($I30,'Raw Ranking Data'!$D$23:$K$406,3,FALSE)","v":{"$error":"#N/A"}},{"$f":"VLOOKUP($I30,'Raw Ranking Data'!$D$23:$K$406,5,FALSE)","v":{"$error":"#N/A"}},{"$f":"VLOOKUP($I30,'Raw Ranking Data'!$D$23:$K$406,7,FALSE)","v":{"$error":"#N/A"}},null,"Above the Fold Results (Positions 1-5)",{"$f":"COUNTIFS(J:J,O29,K:K,\"<=5\",K:K,\">=1\")+COUNTIFS(J:J,O29,L:L,\"<=5\",L:L,\">=1\")+COUNTIFS(J:J,O29,M:M,\"<=5\",M:M,\">=1\")","v":0},8,3,0,12,10]
[null,null,null,null,null,null,null,null,null,null,{"$f":"VLOOKUP($I31,'Raw Ranking Data'!$D$23:$K$406,3,FALSE)","v":{"$error":"#N/A"}},{"$f":"VLOOKUP($I31,'Raw Ranking Data'!$D$23:$K$406,5,FALSE)","v":{"$error":"#N/A"}},{"$f":"VLOOKUP($I31,'Raw Ranking Data'!$D$23:$K$406,7,FALSE)","v":{"$error":"#N/A"}},null,"Positions 6-10",{"$f":"COUNTIFS(J:J,O29,K:K,\"<=10\",K:K,\">=6\")+COUNTIFS(J:J,O29,L:L,\"<=10\",L:L,\">=6\")+COUNTIFS(J:J,O29,M:M,\"<=10\",M:M,\">=6\")","v":0},0,0,0,0,0]
[null,null,null,null,null,null,null,null,null,null,{"$f":"VLOOKUP($I32,'Raw Ranking Data'!$D$23:$K$406,3,FALSE)","v":{"$error":"#N/A"}},{"$f":"VLOOKUP($I32,'Raw Ranking Data'!$D$23:$K$406,5,FALSE)","v":{"$error":"#N/A"}},{"$f":"VLOOKUP($I32,'Raw Ranking Data'!$D$23:$K$406,7,FALSE)","v":{"$error":"#N/A"}},null,"Positions 11-30",{"$f":"COUNTIFS(J:J,O29,K:K,\"<=30\",K:K,\">=11\")+COUNTIFS(J:J,O29,L:L,\"<=30\",L:L,\">=11\")+COUNTIFS(J:J,O29,M:M,\"<=30\",M:M,\">=11\")","v":0},6,15,0,4,3]
[null,null,null,null,null,null,null,null,null,null,{"$f":"VLOOKUP($I33,'Raw Ranking Data'!$D$23:$K$406,3,FALSE)","v":{"$error":"#N/A"}},{"$f":"VLOOKUP($I33,'Raw Ranking Data'!$D$23:$K$406,5,FALSE)","v":{"$error":"#N/A"}},{"$f":"VLOOKUP($I33,'Raw Ranking Data'!$D$23:$K$406,7,FALSE)","v":{"$error":"#N/A"}},null,"Total Ranked Keywords in Top 30 Results",{"$f":"SUM(P30:P32)","v":0},14,18,0,16,13]
[null,null,null,null,null,null,null,null,null,null,{"$f":"VLOOKUP($I34,'Raw Ranking Data'!$D$23:$K$406,3,FALSE)","v":{"$error":"#N/A"}},{"$f":"VLOOKUP($I34,'Raw Ranking Data'!$D$23:$K$406,5,FALSE)","v":{"$error":"#N/A"}},{"$f":"VLOOKUP($I34,'Raw Ranking Data'!$D$23:$K$406,7,FALSE)","v":{"$error":"#N/A"}},null,"% of Ranked Keywords in Top 30 Results",{"$f":"IFERROR(P33/D19,0)","v":0},0.41176470588235292,0.17647058823529413,0,0.15686274509803921,0.12745098039215685]
[null,null,null,null,null,null,null,null,null,null,{"$f":"VLOOKUP($I35,'Raw Ranking Data'!$D$23:$K$406,3,FALSE)","v":{"$error":"#N/A"}},{"$f":"VLOOKUP($I35,'Raw Ranking Data'!$D$23:$K$406,5,FALSE)","v":{"$error":"#N/A"}},{"$f":"VLOOKUP($I35,'Raw Ranking Data'!$D$23:$K$406,7,FALSE)","v":{"$error":"#N/A"}},null,"consulting",{"$f":"$O$1","v":"2013-10-01"},"2013-09-01","2013-10-01","2013-11-01","2013-12-01","2014-01-01","2014-02-01","2014-03-01","2014-04-01","2014-05-01","2014-06-01","2014-07-01","2014-08-01"]
[null,null,null,null,null,null,null,null,null,null,{"$f":"VLOOKUP($I36,'Raw Ranking Data'!$D$23:$K$406,3,FALSE)","v":{"$error":"#N/A"}},{"$f":"VLOOKUP($I36,'Raw Ranking Data'!$D$23:$K$406,5,FALSE)","v":{"$error":"#N/A"}},{"$f":"VLOOKUP($I36,'Raw Ranking Data'!$D$23:$K$406,7,FALSE)","v":{"$error":"#N/A"}},null,"Above the Fold Results (Positions 1-5)",{"$f":"COUNTIFS(J:J,O35,K:K,\"<=5\",K:K,\">=1\")+COUNTIFS(J:J,O35,L:L,\"<=5\",L:L,\">=1\")+COUNTIFS(J:J,O35,M:M,\"<=5\",M:M,\">=1\")","v":0},134,33,0,134,147]
[null,null,null,null,null,null,null,null,null,null,{"$f":"VLOOKUP($I37,'Raw Ranking Data'!$D$23:$K$406,3,FALSE)","v":{"$error":"#N/A"}},{"$f":"VLOOKUP($I37,'Raw Ranking Data'!$D$23:$K$406,5,FALSE)","v":{"$error":"#N/A"}},{"$f":"VLOOKUP($I37,'Raw Ranking Data'!$D$23:$K$406,7,FALSE)","v":{"$error":"#N/A"}},null,"Positions 6-10",{"$f":"COUNTIFS(J:J,O35,K:K,\"<=10\",K:K,\">=6\")+COUNTIFS(J:J,O35,L:L,\"<=10\",L:L,\">=6\")+COUNTIFS(J:J,O35,M:M,\"<=10\",M:M,\">=6\")","v":0},7,12,0,8,7]
[null,null,null,null,null,null,null,null,null,null,{"$f":"VLOOKUP($I38,'Raw Ranking Data'!$D$23:$K$406,3,FALSE)","v":{"$error":"#N/A"}},{"$f":"VLOOKUP($I38,'Raw Ranking Data'!$D$23:$K$406,5,FALSE)","v":{"$error":"#N/A"}},{"$f":"VLOOKUP($I38,'Raw Ranking Data'!$D$23:$K$406,7,FALSE)","v":{"$error":"#N/A"}},null,"Positions 11-30",{"$f":"COUNTIFS(J:J,O35,K:K,\"<=30\",K:K,\">=11\")+COUNTIFS(J:J,O35,L:L,\"<=30\",L:L,\">=11\")+COUNTIFS(J:J,O35,M:M,\"<=30\",M:M,\">=11\")","v":0},8,17,0,17,11]
[null,null,null,null,null,null,null,null,null,null,{"$f":"VLOOKUP($I39,'Raw Ranking Data'!$D$23:$K$406,3,FALSE)","v":{"$error":"#N/A"}},{"$f":"VLOOKUP($I39,'Raw Ranking Data'!$D$23:$K$406,5,FALSE)","v":{"$error":"#N/A"}},{"$f":"VLOOKUP($I39,'Raw Ranking Data'!$D$23:$K$406,7,FALSE)","v":{"$error":"#N/A"}},null,"Total Ranked Keywords in Top 30 Results",{"$f":"SUM(P36:P38)","v":0},149,62,0,159,165]
[null,null,null,null,null,null,null,null,null,null,{"$f":"VLOOKUP($I40,'Raw Ranking Data'!$D$23:$K$406,3,FALSE)","v":{"$error":"#N/A"}},{"$f":"VLOOKUP($I40,'Raw Ranking Data'!$D$23:$K$406,5,FALSE)","v":{"$error":"#N/A"}},{"$f":"VLOOKUP($I40,'Raw Ranking Data'!$D$23:$K$406,7,FALSE)","v":{"$error":"#N/A"}},null,"% of Ranked Keywords in Top 30 Results",{"$f":"IFERROR(P39/E19,0)","v":0},1.6931818181818181,0,0,0.60227272727272729,0.625]
[null,null,null,null,null,null,null,null,null,null,{"$f":"VLOOKUP($I41,'Raw Ranking Data'!$D$23:$K$406,3,FALSE)","v":{"$error":"#N/A"}},{"$f":"VLOOKUP($I41,'Raw Ranking Data'!$D$23:$K$406,5,FALSE)","v":{"$error":"#N/A"}},{"$f":"VLOOKUP($I41,'Raw Ranking Data'!$D$23:$K$406,7,FALSE)","v":{"$error":"#N/A"}},null,"essay",{"$f":"$O$1","v":"2013-10-01"},"2013-09-01","2013-10-01","2013-11-01","2013-12-01","2014-01-01","2014-02-01","2014-03-01","2014-04-01","2014-05-01","2014-06-01","2014-07-01","2014-08-01"]
[null,null,null,null,null,null,null,null,null,null,{"$f":"VLOOKUP($I42,'Raw Ranking Data'!$D$23:$K$406,3,FALSE)","v":{"$error":"#N/A"}},{"$f":"VLOOKUP($I42,'Raw Ranking Data'!$D$23:$K$406,5,FALSE)","v":{"$error":"#N/A"}},{"$f":"VLOOKUP($I42,'Raw Ranking Data'!$D$23:$K$406,7,FALSE)","v":{"$error":"#N/A"}},null,"Above the Fold Results (Positions 1-5)",{"$f":"COUNTIFS(J:J,O41,K:K,\"<=5\",K:K,\">=1\")+COUNTIFS(J:J,O41,L:L,\"<=5\",L:L,\">=1\")+COUNTIFS(J:J,O41,M:M,\"<=5\",M:M,\">=1\")","v":0},47,15,0,51,51]
[null,null,null,null,null,null,null,null,null,null,{"$f":"VLOOKUP($I43,'Raw Ranking Data'!$D$23:$K$406,3,FALSE)","v":{"$error":"#N/A"}},{"$f":"VLOOKUP($I43,'Raw Ranking Data'!$D$23:$K$406,5,FALSE)","v":{"$error":"#N/A"}},{"$f":"VLOOKUP($I43,'Raw Ranking Data'!$D$23:$K$406,7,FALSE)","v":{"$error":"#N/A"}},null,"Positions 6-10",{"$f":"COUNTIFS(J:J,O41,K:K,\"<=10\",K:K,\">=6\")+COUNTIFS(J:J,O41,L:L,\"<=10\",L:L,\">=6\")+COUNTIFS(J:J,O41,M:M,\"<=10\",M:M,\">=6\")","v":0},3,4,0,0,0]
[null,null,null,null,null,null,null,null,null,null,{"$f":"VLOOKUP($I44,'Raw Ranking Data'!$D$23:$K$406,3,FALSE)","v":{"$error":"#N/A"}},{"$f":"VLOOKUP($I44,'Raw Ranking Data'!$D$23:$K$406,5,FALSE)","v":{"$error":"#N/A"}},{"$f":"VLOOKUP($I44,'Raw Ranking Data'!$D$23:$K$406,7,FALSE)","v":{"$error":"#N/A"}},null,"Positions 11-30",{"$f":"COUNTIFS(J:J,O41,K:K,\"<=30\",K:K,\">=11\")+COUNTIFS(J:J,O41,L:L,\"<=30\",L:L,\">=11\")+COUNTIFS(J:J,O41,M:M,\"<=30\",M:M,\">=11\")","v":0},1,3,0,0,0]
[null,null,null,null,null,null,null,null,null,null,{"$f":"VLOOKUP($I45,'Raw Ranking Data'!$D$23:$K$406,3,FALSE)","v":{"$error":"#N/A"}},{"$f":"VLOOKUP($I45,'Raw Ranking Data'!$D$23:$K$406,5,FALSE)","v":{"$error":"#N/A"}},{"$f":"VLOOKUP($I45,'Raw Ranking Data'!$D$23:$K$406,7,FALSE)","v":{"$error":"#N/A"}},null,"Total Ranked Keywords in Top 30 Results",{"$f":"SUM(P42:P44)","v":0},51,22,0,51,51]
[null,null,null,null,null,null,null,null,null,null,{"$f":"VLOOKUP($I46,'Raw Ranking Data'!$D$23:$K$406,3,FALSE)","v":{"$error":"#N/A"}},{"$f":"VLOOKUP($I46,'Raw Ranking Data'!$D$23:$K$406,5,FALSE)","v":{"$error":"#N/A"}},{"$f":"VLOOKUP($I46,'Raw Ranking Data'!$D$23:$K$406,7,FALSE)","v":{"$error":"#N/A"}},null,"% of Ranked Keywords in Top 30 Results",{"$f":"IFERROR(P45/F19,0)","v":0},0.59302325581395354,0,0,0.19767441860465115,0.19767441860465115]
[null,null,null,null,null,null,null,null,null,null,{"$f":"VLOOKUP($I47,'Raw Ranking Data'!$D$23:$K$406,3,FALSE)","v":{"$error":"#N/A"}},{"$f":"VLOOKUP($I47,'Raw Ranking Data'!$D$23:$K$406,5,FALSE)","v":{"$error":"#N/A"}},{"$f":"VLOOKUP($I47,'Raw Ranking Data'!$D$23:$K$406,7,FALSE)","v":{"$error":"#N/A"}},null,"howto",{"$f":"$O$1","v":"2013-10-01"},"2013-09-01","2013-10-01","2013-11-01","2013-12-01","2014-01-01","2014-02-01","2014-03-01","2014-04-01","2014-05-01","2014-06-01","2014-07-01","2014-08-01"]
[null,null,null,null,null,null,null,null,null,null,{"$f":"VLOOKUP($I48,'Raw Ranking Data'!$D$23:$K$406,3,FALSE)","v":{"$error":"#N/A"}},{"$f":"VLOOKUP($I48,'Raw Ranking Data'!$D$23:$K$406,5,FALSE)","v":{"$error":"#N/A"}},{"$f":"VLOOKUP($I48,'Raw Ranking Data'!$D$23:$K$406,7,FALSE)","v":{"$error":"#N/A"}},null,"Above the Fold Results (Positions 1-5)",{"$f":"COUNTIFS(J:J,O47,K:K,\"<=5\",K:K,\">=1\")+COUNTIFS(J:J,O47,L:L,\"<=5\",L:L,\">=1\")+COUNTIFS(J:J,O47,M:M,\"<=5\",M:M,\">=1\")","v":0},0,22,0,0,0]
[null,null,null,null,null,null,null,null,null,null,{"$f":"VLOOKUP($I49,'Raw Ranking Data'!$D$23:$K$406,3,FALSE)","v":{"$error":"#N/A"}},{"$f":"VLOOKUP($I49,'Raw Ranking Data'!$D$23:$K$406,5,FALSE)","v":{"$error":"#N/A"}},{"$f":"VLOOKUP($I49,'Raw Ranking Data'!$D$23:$K$406,7,FALSE)","v":{"$error":"#N/A"}},null,"Positions 6-10",{"$f":"COUNTIFS(J:J,O47,K:K,\"<=10\",K:K,\">=6\")+COUNTIFS(J:J,O47,L:L,\"<=10\",L:L,\">=6\")+COUNTIFS(J:J,O47,M:M,\"<=10\",M:M,\">=6\")","v":0},0,17,0,0,0]
[null,null,null,null,null,null,null,null,null,null,{"$f":"VLOOKUP($I50,'Raw Ranking Data'!$D$23:$K$406,3,FALSE)","v":{"$error":"#N/A"}},{"$f":"VLOOKUP($I50,'Raw Ranking Data'!$D$23:$K$406,5,FALSE)","v":{"$error":"#N/A"}},{"$f":"VLOOKUP($I50,'Raw Ranking Data'!$D$23:$K$406,7,FALSE)","v":{"$error":"#N/A"}},null,"Positions 11-30",{"$f":"COUNTIFS(J:J,O47,K:K,\"<=30\",K:K,\">=11\")+COUNTIFS(J:J,O47,L:L,\"<=30\",L:L,\">=11\")+COUNTIFS(J:J,O47,M:M,\"<=30\",M:M,\">=11\")","v":0},0,11,0,0,0]
[null,null,null,null,null,null,null,null,null,null,{"$f":"VLOOKUP($I51,'Raw Ranking Data'!$D$23:$K$406,3,FALSE)","v":{"$error":"#N/A"}},{"$f":"VLOOKUP($I51,'Raw Ranking Data'!$D$23:$K$406,5,FALSE)","v":{"$error":"#N/A"}},{"$f":"VLOOKUP($I51,'Raw Ranking Data'!$D$23:$K$406,7,FALSE)","v":{"$error":"#N/A"}},null,"Total Ranked Keywords in Top 30 Results",{"$f":"SUM(P48:P50)","v":0},0,50,0,0,0]
[null,null,null,null,null,null,null,null,null,null,{"$f":"VLOOKUP($I52,'Raw Ranking Data'!$D$23:$K$406,3,FALSE)","v":{"$error":"#N/A"}},{"$f":"VLOOKUP($I52,'Raw Ranking Data'!$D$23:$K$406,5,FALSE)","v":{"$error":"#N/A"}},{"$f":"VLOOKUP($I52,'Raw Ranking Data'!$D$23:$K$406,7,FALSE)","v":{"$error":"#N/A"}},null,"% of Ranked Keywords in Top 30 Results",{"$f":"IFERROR(P51/G19,0)","v":0},0,0,0,0,0]
[null,null,null,null,null,null,null,null,null,null,{"$f":"VLOOKUP($I53,'Raw Ranking Data'!$D$23:$K$406,3,FALSE)","v":{"$error":"#N/A"}},{"$f":"VLOOKUP($I53,'Raw Ranking Data'!$D$23:$K$406,5,FALSE)","v":{"$error":"#N/A"}},{"$f":"VLOOKUP($I53,'Raw Ranking Data'!$D$23:$K$406,7,FALSE)","v":{"$error":"#N/A"}},null,"Total Verticles",{"$f":"$O$1","v":"2013-10-01"},"2013-09-01","2013-10-01","2013-11-01","2013-12-01","2014-01-01","2014-02-01","2014-03-01","2014-04-01","2014-05-01","2014-06-01","2014-07-01","2014-08-01"]
[null,null,null,null,null,null,null,null,null,null,{"$f":"VLOOKUP($I54,'Raw Ranking Data'!$D$23:$K$406,3,FALSE)","v":{"$error":"#N/A"}},{"$f":"VLOOKUP($I54,'Raw Ranking Data'!$D$23:$K$406,5,FALSE)","v":{"$error":"#N/A"}},{"$f":"VLOOKUP($I54,'Raw Ranking Data'!$D$23:$K$406,7,FALSE)","v":{"$error":"#N/A"}},null,"Above the Fold Results (Positions 1-5)",{"$f":"P30+P36+P42+P48","v":0},189,73,0,197,208]
[null,null,null,null,null,null,null,null,null,null,{"$f":"VLOOKUP($I55,'Raw Ranking Data'!$D$23:$K$406,3,FALSE)","v":{"$error":"#N/A"}},{"$f":"VLOOKUP($I55,'Raw Ranking Data'!$D$23:$K$406,5,FALSE)","v":{"$error":"#N/A"}},{"$f":"VLOOKUP($I55,'Raw Ranking Data'!$D$23:$K$406,7,FALSE)","v":{"$error":"#N/A"}},null,"Positions 6-10",{"$f":"P31+P37+P43+P49","v":0},10,33,0,8,7]
[null,null,null,null,null,null,null,null,null,null,{"$f":"VLOOKUP($I56,'Raw Ranking Data'!$D$23:$K$406,3,FALSE)","v":{"$error":"#N/A"}},{"$f":"VLOOKUP($I56,'Raw Ranking Data'!$D$23:$K$406,5,FALSE)","v":{"$error":"#N/A"}},{"$f":"VLOOKUP($I56,'Raw Ranking Data'!$D$23:$K$406,7,FALSE)","v":{"$error":"#N/A"}},null,"Positions 11-30",{"$f":"P32+P38+P44+P50","v":0},15,46,0,21,14]
[null,null,null,null,null,null,null,null,null,null,{"$f":"VLOOKUP($I57,'Raw Ranking Data'!$D$23:$K$406,3,FALSE)","v":{"$error":"#N/A"}},{"$f":"VLOOKUP($I57,'Raw Ranking Data'!$D$23:$K$406,5,FALSE)","v":{"$error":"#N/A"}},{"$f":"VLOOKUP($I57,'Raw Ranking Data'!$D$23:$K$406,7,FALSE)","v":{"$error":"#N/A"}},null,"Total Ranked Keywords in Top 30 Results",{"$f":"P33+P39+P45+P51","v":0},214,152,0,226,229]
[null,null,null,null,null,null,null,null,null,null,{"$f":"VLOOKUP($I58,'Raw Ranking Data'!$D$23:$K$406,3,FALSE)","v":{"$error":"#N/A"}},{"$f":"VLOOKUP($I58,'Raw Ranking Data'!$D$23:$K$406,5,FALSE)","v":{"$error":"#N/A"}},{"$f":"VLOOKUP($I58,'Raw Ranking Data'!$D$23:$K$406,7,FALSE)","v":{"$error":"#N/A"}},null,"% of Ranked Keywords in Top 30 Results",{"$f":"IFERROR(P57/C19,0)","v":0},0.93449781659388642,0,0,0.32896652110625912,0.33333333333333331]
[null,null,null,null,null,null,null,null,null,null,{"$f":"VLOOKUP($I59,'Raw Ranking Data'!$D$23:$K$406,3,FALSE)","v":{"$error":"#N/A"}},{"$f":"VLOOKUP($I59,'Raw Ranking Data'!$D$23:$K$406,5,FALSE)","v":{"$error":"#N/A"}},{"$f":"VLOOKUP($I59,'Raw Ranking Data'!$D$23:$K$406,7,FALSE)","v":{"$error":"#N/A"}}]
[null,null,null,null,null,null,null,null,null,null,{"$f":"VLOOKUP($I60,'Raw Ranking Data'!$D$23:$K$406,3,FALSE)","v":{"$error":"#N/A"}},{"$f":"VLOOKUP($I60,'Raw Ranking Data'!$D$23:$K$406,5,FALSE)","v":{"$error":"#N/A"}},{"$f":"VLOOKUP($I60,'Raw Ranking Data'!$D$23:$K$406,7,FALSE)","v":{"$error":"#N/A"}}]
[null,null,null,null,null,null,null,null,null,null,{"$f":"VLOOKUP($I61,'Raw Ranking Data'!$D$23:$K$406,3,FALSE)","v":{"$error":"#N/A"}},{"$f":"VLOOKUP($I61,'Raw Ranking Data'!$D$23:$K$406,5,FALSE)","v":{"$error":"#N/A"}},{"$f":"VLOOKUP($I61,'Raw Ranking Data'!$D$23:$K$406,7,FALSE)","v":{"$error":"#N/A"}},null,"Vertical Ranking over time"]
[null,null,null,null,null,null,null,null,null,null,{"$f":"VLOOKUP($I62,'Raw Ranking Data'!$D$23:$K$406,3,FALSE)","v":{"$error":"#N/A"}},{"$f":"VLOOKUP($I62,'Raw Ranking Data'!$D$23:$K$406,5,FALSE)","v":{"$error":"#N/A"}},{"$f":"VLOOKUP($I62,'Raw Ranking Data'!$D$23:$K$406,7,FALSE)","v":{"$error":"#N/A"}},null,null,{"$f":"$O$1","v":"2013-10-01"},"sept","2013-10-01","2013-11-01","dec"]
[null,null,null,null,null,null,null,null,null,null,{"$f":"VLOOKUP($I63,'Raw Ranking Data'!$D$23:$K$406,3,FALSE)","v":{"$error":"#N/A"}},{"$f":"VLOOKUP($I63,'Raw Ranking Data'!$D$23:$K$406,5,FALSE)","v":{"$error":"#N/A"}},{"$f":"VLOOKUP($I63,'Raw Ranking Data'!$D$23:$K$406,7,FALSE)","v":{"$error":"#N/A"}},null,"v1",{"$f":"P33","v":0},5,0,0]
[null,null,null,null,null,null,null,null,null,null,{"$f":"VLOOKUP($I64,'Raw Ranking Data'!$D$23:$K$406,3,FALSE)","v":{"$error":"#N/A"}},{"$f":"VLOOKUP($I64,'Raw Ranking Data'!$D$23:$K$406,5,FALSE)","v":{"$error":"#N/A"}},{"$f":"VLOOKUP($I64,'Raw Ranking Data'!$D$23:$K$406,7,FALSE)","v":{"$error":"#N/A"}},null,"v2",{"$f":"P39","v":0},7,0,0]
[null,null,null,null,null,null,null,null,null,null,{"$f":"VLOOKUP($I65,'Raw Ranking Data'!$D$23:$K$406,3,FALSE)","v":{"$error":"#N/A"}},{"$f":"VLOOKUP($I65,'Raw Ranking Data'!$D$23:$K$406,5,FALSE)","v":{"$error":"#N/A"}},{"$f":"VLOOKUP($I65,'Raw Ranking Data'!$D$23:$K$406,7,FALSE)","v":{"$error":"#N/A"}},null,"v3",{"$f":"P45","v":0},3,0,0]
[null,null,null,null,null,null,null,null,null,null,{"$f":"VLOOKUP($I66,'Raw Ranking Data'!$D$23:$K$406,3,FALSE)","v":{"$error":"#N/A"}},{"$f":"VLOOKUP($I66,'Raw Ranking Data'!$D$23:$K$406,5,FALSE)","v":{"$error":"#N/A"}},{"$f":"VLOOKUP($I66,'Raw Ranking Data'!$D$23:$K$406,7,FALSE)","v":{"$error":"#N/A"}},null,"v4",{"$f":"P51","v":0},2,0,0]
[null,null,null,null,null,null,null,null,null,null,{"$f":"VLOOKUP($I67,'Raw Ranking Data'!$D$23:$K$406,3,FALSE)","v":{"$error":"#N/A"}},{"$f":"VLOOKUP($I67,'Raw Ranking Data'!$D$23:$K$406,5,FALSE)","v":{"$error":"#N/A"}},{"$f":"VLOOKUP($I67,'Raw Ranking Data'!$D$23:$K$406,7,FALSE)","v":{"$error":"#N/A"}}]
[null,null,null,null,null,null,null,null,null,null,{"$f":"VLOOKUP($I68,'Raw Ranking Data'!$D$23:$K$406,3,FALSE)","v":{"$error":"#N/A"}},{"$f":"VLOOKUP($I68,'Raw Ranking Data'!$D$23:$K$406,5,FALSE)","v":{"$error":"#N/A"}},{"$f":"VLOOKUP($I68,'Raw Ranking Data'!$D$23:$K$406,7,FALSE)","v":{"$error":"#N/A"}}]
[null,null,null,null,null,null,null,null,null,null,{"$f":"VLOOKUP($I69,'Raw Ranking Data'!$D$23:$K$406,3,FALSE)","v":{"$error":"#N/A"}},{"$f":"VLOOKUP($I69,'Raw Ranking Data'!$D$23:$K$406,5,FALSE)","v":{"$error":"#N/A"}},{"$f":"VLOOKUP($I69,'Raw Ranking Data'!$D$23:$K$406,7,FALSE)","v":{"$error":"#N/A"}}]
[null,null,null,null,null,null,null,null,null,null,{"$f":"VLOOKUP($I70,'Raw Ranking Data'!$D$23:$K$406,3,FALSE)","v":{"$error":"#N/A"}},{"$f":"VLOOKUP($I70,'Raw Ranking Data'!$D$23:$K$406,5,FALSE)","v":{"$error":"#N/A"}},{"$f":"VLOOKUP($I70,'Raw Ranking Data'!$D$23:$K$406,7,FALSE)","v":{"$error":"#N/A"}}]
[null,null,null,null,null,null,null,null,null,null,{"$f":"VLOOKUP($I71,'Raw Ranking Data'!$D$23:$K$406,3,FALSE)","v":{"$error":"#N/A"}},{"$f":"VLOOKUP($I71,'Raw Ranking Data'!$D$23:$K$406,5,FALSE)","v":{"$error":"#N/A"}},{"$f":"VLOOKUP($I71,'Raw Ranking Data'!$D$23:$K$406,7,FALSE)","v":{"$error":"#N/A"}}]
[null,null,null,null,null,null,null,null,null,null,{"$f":"VLOOKUP($I72,'Raw Ranking Data'!$D$23:$K$406,3,FALSE)","v":{"$error":"#N/A"}},{"$f":"VLOOKUP($I72,'Raw Ranking Data'!$D$23:$K$406,5,FALSE)","v":{"$error":"#N/A"}},{"$f":"VLOOKUP($I72,'Raw Ranking Data'!$D$23:$K$406,7,FALSE)","v":{"$error":"#N/A"}}]
[null,null,null,null,null,null,null,null,null,null,{"$f":"VLOOKUP($I73,'Raw Ranking Data'!$D$23:$K$406,3,FALSE)","v":{"$error":"#N/A"}},{"$f":"VLOOKUP($I73,'Raw Ranking Data'!$D$23:$K$406,5,FALSE)","v":{"$error":"#N/A"}},{"$f":"VLOOKUP($I73,'Raw Ranking Data'!$D$23:$K$406,7,FALSE)","v":{"$error":"#N/A"}}]
[null,null,null,null,null,null,null,null,null,null,{"$f":"VLOOKUP($I74,'Raw Ranking Data'!$D$23:$K$406,3,FALSE)","v":{"$error":"#N/A"}},{"$f":"VLOOKUP($I74,'Raw Ranking Data'!$D$23:$K$406,5,FALSE)","v":{"$error":"#N/A"}},{"$f":"VLOOKUP($I74,'Raw Ranking Data'!$D$23:$K$406,7,FALSE)","v":{"$error":"#N/A"}}]
[null,null,null,null,null,null,null,null,null,null,{"$f":"VLOOKUP($I75,'Raw Ranking Data'!$D$23:$K$406,3,FALSE)","v":{"$error":"#N/A"}},{"$f":"VLOOKUP($I75,'Raw Ranking Data'!$D$23:$K$406,5,FALSE)","v":{"$error":"#N/A"}},{"$f":"VLOOKUP($I75,'Raw Ranking Data'!$D$23:$K$406,7,FALSE)","v":{"$error":"#N/A"}}]
[null,null,null,null,null,null,null,null,null,null,{"$f":"VLOOKUP($I76,'Raw Ranking Data'!$D$23:$K$406,3,FALSE)","v":{"$error":"#N/A"}},{"$f":"VLOOKUP($I76,'Raw Ranking Data'!$D$23:$K$406,5,FALSE)","v":{"$error":"#N/A"}},{"$f":"VLOOKUP($I76,'Raw Ranking Data'!$D$23:$K$406,7,FALSE)","v":{"$error":"#N/A"}}]
[null,null,null,null,null,null,null,null,null,null,{"$f":"VLOOKUP($I77,'Raw Ranking Data'!$D$23:$K$406,3,FALSE)","v":{"$error":"#N/A"}},{"$f":"VLOOKUP($I77,'Raw Ranking Data'!$D$23:$K$406,5,FALSE)","v":{"$error":"#N/A"}},{"$f":"VLOOKUP($I77,'Raw Ranking Data'!$D$23:$K$406,7,FALSE)","v":{"$error":"#N/A"}}]
[null,null,null,null,null,null,null,null,null,null,{"$f":"VLOOKUP($I78,'Raw Ranking Data'!$D$23:$K$406,3,FALSE)","v":{"$error":"#N/A"}},{"$f":"VLOOKUP($I78,'Raw Ranking Data'!$D$23:$K$406,5,FALSE)","v":{"$error":"#N/A"}},{"$f":"VLOOKUP($I78,'Raw Ranking Data'!$D$23:$K$406,7,FALSE)","v":{"$error":"#N/A"}}]
[null,null,null,null,null,null,null,null,null,null,{"$f":"VLOOKUP($I79,'Raw Ranking Data'!$D$23:$K$406,3,FALSE)","v":{"$error":"#N/A"}},{"$f":"VLOOKUP($I79,'Raw Ranking Data'!$D$23:$K$406,5,FALSE)","v":{"$error":"#N/A"}},{"$f":"VLOOKUP($I79,'Raw Ranking Data'!$D$23:$K$406,7,FALSE)","v":{"$error":"#N/A"}}]
[null,null,null,null,null,null,null,null,null,null,{"$f":"VLOOKUP($I80,'Raw Ranking Data'!$D$23:$K$406,3,FALSE)","v":{"$error":"#N/A"}},{"$f":"VLOOKUP($I80,'Raw Ranking Data'!$D$23:$K$406,5,FALSE)","v":{"$error":"#N/A"}},{"$f":"VLOOKUP($I80,'Raw Ranking Data'!$D$23:$K$406,7,FALSE)","v":{"$error":"#N/A"}}]
[null,null,null,null,null,null,null,null,null,null,{"$f":"VLOOKUP($I81,'Raw Ranking Data'!$D$23:$K$406,3,FALSE)","v":{"$error":"#N/A"}},{"$f":"VLOOKUP($I81,'Raw Ranking Data'!$D$23:$K$406,5,FALSE)","v":{"$error":"#N/A"}},{"$f":"VLOOKUP($I81,'Raw Ranking Data'!$D$23:$K$406,7,FALSE)","v":{"$error":"#N/A"}}]
[null,null,null,null,null,null,null,null,null,null,{"$f":"VLOOKUP($I82,'Raw Ranking Data'!$D$23:$K$406,3,FALSE)","v":{"$error":"#N/A"}},{"$f":"VLOOKUP($I82,'Raw Ranking Data'!$D$23:$K$406,5,FALSE)","v":{"$error":"#N/A"}},{"$f":"VLOOKUP($I82,'Raw Ranking Data'!$D$23:$K$406,7,FALSE)","v":{"$error":"#N/A"}}]
[null,null,null,null,null,null,null,null,null,null,{"$f":"VLOOKUP($I83,'Raw Ranking Data'!$D$23:$K$406,3,FALSE)","v":{"$error":"#N/A"}},{"$f":"VLOOKUP($I83,'Raw Ranking Data'!$D$23:$K$406,5,FALSE)","v":{"$error":"#N/A"}},{"$f":"VLOOKUP($I83,'Raw Ranking Data'!$D$23:$K$406,7,FALSE)","v":{"$error":"#N/A"}}]
[null,null,null,null,null,null,null,null,null,null,{"$f":"VLOOKUP($I84,'Raw Ranking Data'!$D$23:$K$406,3,FALSE)","v":{"$error":"#N/A"}},{"$f":"VLOOKUP($I84,'Raw Ranking Data'!$D$23:$K$406,5,FALSE)","v":{"$error":"#N/A"}},{"$f":"VLOOKUP($I84,'Raw Ranking Data'!$D$23:$K$406,7,FALSE)","v":{"$error":"#N/A"}}]
[null,null,null,null,null,null,null,null,null,null,{"$f":"VLOOKUP($I85,'Raw Ranking Data'!$D$23:$K$406,3,FALSE)","v":{"$error":"#N/A"}},{"$f":"VLOOKUP($I85,'Raw Ranking Data'!$D$23:$K$406,5,FALSE)","v":{"$error":"#N/A"}},{"$f":"VLOOKUP($I85,'Raw Ranking Data'!$D$23:$K$406,7,FALSE)","v":{"$error":"#N/A"}}]
[null,null,null,null,null,null,null,null,null,null,{"$f":"VLOOKUP($I86,'Raw Ranking Data'!$D$23:$K$406,3,FALSE)","v":{"$error":"#N/A"}},{"$f":"VLOOKUP($I86,'Raw Ranking Data'!$D$23:$K$406,5,FALSE)","v":{"$error":"#N/A"}},{"$f":"VLOOKUP($I86,'Raw Ranking Data'!$D$23:$K$406,7,FALSE)","v":{"$error":"#N/A"}}]
[null,null,null,null,null,null,null,null,null,null,{"$f":"VLOOKUP($I87,'Raw Ranking Data'!$D$23:$K$406,3,FALSE)","v":{"$error":"#N/A"}},{"$f":"VLOOKUP($I87,'Raw Ranking Data'!$D$23:$K$406,5,FALSE)","v":{"$error":"#N/A"}},{"$f":"VLOOKUP($I87,'Raw Ranking Data'!$D$23:$K$406,7,FALSE)","v":{"$error":"#N/A"}}]
[null,null,null,null,null,null,null,null,null,null,{"$f":"VLOOKUP($I88,'Raw Ranking Data'!$D$23:$K$406,3,FALSE)","v":{"$error":"#N/A"}},{"$f":"VLOOKUP($I88,'Raw Ranking Data'!$D$23:$K$406,5,FALSE)","v":{"$error":"#N/A"}},{"$f":"VLOOKUP($I88,'Raw Ranking Data'!$D$23:$K$406,7,FALSE)","v":{"$error":"#N/A"}}]
[null,null,null,null,null,null,null,null,null,null,{"$f":"VLOOKUP($I89,'Raw Ranking Data'!$D$23:$K$406,3,FALSE)","v":{"$error":"#N/A"}},{"$f":"VLOOKUP($I89,'Raw Ranking Data'!$D$23:$K$406,5,FALSE)","v":{"$error":"#N/A"}},{"$f":"VLOOKUP($I89,'Raw Ranking Data'!$D$23:$K$406,7,FALSE)","v":{"$error":"#N/A"}}]
[null,null,null,null,null,null,null,null,null,null,{"$f":"VLOOKUP($I90,'Raw Ranking Data'!$D$23:$K$406,3,FALSE)","v":{"$error":"#N/A"}},{"$f":"VLOOKUP($I90,'Raw Ranking Data'!$D$23:$K$406,5,FALSE)","v":{"$error":"#N/A"}},{"$f":"VLOOKUP($I90,'Raw Ranking Data'!$D$23:$K$406,7,FALSE)","v":{"$error":"#N/A"}}]
[null,null,null,null,null,null,null,null,null,null,{"$f":"VLOOKUP($I91,'Raw Ranking Data'!$D$23:$K$406,3,FALSE)","v":{"$error":"#N/A"}},{"$f":"VLOOKUP($I91,'Raw Ranking Data'!$D$23:$K$406,5,FALSE)","v":{"$error":"#N/A"}},{"$f":"VLOOKUP($I91,'Raw Ranking Data'!$D$23:$K$406,7,FALSE)","v":{"$error":"#N/A"}}]
[null,null,null,null,null,null,null,null,null,null,{"$f":"VLOOKUP($I92,'Raw Ranking Data'!$D$23:$K$406,3,FALSE)","v":{"$error":"#N/A"}},{"$f":"VLOOKUP($I92,'Raw Ranking Data'!$D$23:$K$406,5,FALSE)","v":{"$error":"#N/A"}},{"$f":"VLOOKUP($I92,'Raw Ranking Data'!$D$23:$K$406,7,FALSE)","v":{"$error":"#N/A"}}]
[null,null,null,null,null,null,null,null,null,null,{"$f":"VLOOKUP($I93,'Raw Ranking Data'!$D$23:$K$406,3,FALSE)","v":{"$error":"#N/A"}},{"$f":"VLOOKUP($I93,'Raw Ranking Data'!$D$23:$K$406,5,FALSE)","v":{"$error":"#N/A"}},{"$f":"VLOOKUP($I93,'Raw Ranking Data'!$D$23:$K$406,7,FALSE)","v":{"$error":"#N/A"}}]
[null,null,null,null,null,null,null,null,null,null,{"$f":"VLOOKUP($I94,'Raw Ranking Data'!$D$23:$K$406,3,FALSE)","v":{"$error":"#N/A"}},{"$f":"VLOOKUP($I94,'Raw Ranking Data'!$D$23:$K$406,5,FALSE)","v":{"$error":"#N/A"}},{"$f":"VLOOKUP($I94,'Raw Ranking Data'!$D$23:$K$406,7,FALSE)","v":{"$error":"#N/A"}}]
[null,null,null,null,null,null,null,null,null,null,{"$f":"VLOOKUP($I95,'Raw Ranking Data'!$D$23:$K$406,3,FALSE)","v":{"$error":"#N/A"}},{"$f":"VLOOKUP($I95,'Raw Ranking Data'!$D$23:$K$406,5,FALSE)","v":{"$error":"#N/A"}},{"$f":"VLOOKUP($I95,'Raw Ranking Data'!$D$23:$K$406,7,FALSE)","v":{"$error":"#N/A"}}]
[null,null,null,null,null,null,null,null,null,null,{"$f":"VLOOKUP($I96,'Raw Ranking Data'!$D$23:$K$406,3,FALSE)","v":{"$error":"#N/A"}},{"$f":"VLOOKUP($I96,'Raw Ranking Data'!$D$23:$K$406,5,FALSE)","v":{"$error":"#N/A"}},{"$f":"VLOOKUP($I96,'Raw Ranking Data'!$D$23:$K$406,7,FALSE)","v":{"$error":"#N/A"}}]
[null,null,null,null,null,null,null,null,null,null,{"$f":"VLOOKUP($I97,'Raw Ranking Data'!$D$23:$K$406,3,FALSE)","v":{"$error":"#N/A"}},{"$f":"VLOOKUP($I97,'Raw Ranking Data'!$D$23:$K$406,5,FALSE)","v":{"$error":"#N/A"}},{"$f":"VLOOKUP($I97,'Raw Ranking Data'!$D$23:$K$406,7,FALSE)","v":{"$error":"#N/A"}}]
[null,null,null,null,null,null,null,null,null,null,{"$f":"VLOOKUP($I98,'Raw Ranking Data'!$D$23:$K$406,3,FALSE)","v":{"$error":"#N/A"}},{"$f":"VLOOKUP($I98,'Raw Ranking Data'!$D$23:$K$406,5,FALSE)","v":{"$error":"#N/A"}},{"$f":"VLOOKUP($I98,'Raw Ranking Data'!$D$23:$K$406,7,FALSE)","v":{"$error":"#N/A"}}]
[null,null,null,null,null,null,null,null,null,null,{"$f":"VLOOKUP($I99,'Raw Ranking Data'!$D$23:$K$406,3,FALSE)","v":{"$error":"#N/A"}},{"$f":"VLOOKUP($I99,'Raw Ranking Data'!$D$23:$K$406,5,FALSE)","v":{"$error":"#N/A"}},{"$f":"VLOOKUP($I99,'Raw Ranking Data'!$D$23:$K$406,7,FALSE)","v":{"$error":"#N/A"}}]
[null,null,null,null,null,null,null,null,null,null,{"$f":"VLOOKUP($I100,'Raw Ranking Data'!$D$23:$K$406,3,FALSE)","v":{"$error":"#N/A"}},{"$f":"VLOOKUP($I100,'Raw Ranking Data'!$D$23:$K$406,5,FALSE)","v":{"$error":"#N/A"}},{"$f":"VLOOKUP($I100,'Raw Ranking Data'!$D$23:$K$406,7,FALSE)","v":{"$error":"#N/A"}}]
[null,null,null,null,null,null,null,null,null,null,{"$f":"VLOOKUP($I101,'Raw Ranking Data'!$D$23:$K$406,3,FALSE)","v":{"$error":"#N/A"}},{"$f":"VLOOKUP($I101,'Raw Ranking Data'!$D$23:$K$406,5,FALSE)","v":{"$error":"#N/A"}},{"$f":"VLOOKUP($I101,'Raw Ranking Data'!$D$23:$K$406,7,FALSE)","v":{"$error":"#N/A"}}]
[null,null,null,null,null,null,null,null,null,null,{"$f":"VLOOKUP($I102,'Raw Ranking Data'!$D$23:$K$406,3,FALSE)","v":{"$error":"#N/A"}},{"$f":"VLOOKUP($I102,'Raw Ranking Data'!$D$23:$K$406,5,FALSE)","v":{"$error":"#N/A"}},{"$f":"VLOOKUP($I102,'Raw Ranking Data'!$D$23:$K$406,7,FALSE)","v":{"$error":"#N/A"}}]
[null,null,null,null,null,null,null,null,null,null,{"$f":"VLOOKUP($I103,'Raw Ranking Data'!$D$23:$K$406,3,FALSE)","v":{"$error":"#N/A"}},{"$f":"VLOOKUP($I103,'Raw Ranking Data'!$D$23:$K$406,5,FALSE)","v":{"$error":"#N/A"}},{"$f":"VLOOKUP($I103,'Raw Ranking Data'!$D$23:$K$406,7,FALSE)","v":{"$error":"#N/A"}}]
[null,null,null,null,null,null,null,null,null,null,{"$f":"VLOOKUP($I104,'Raw Ranking Data'!$D$23:$K$406,3,FALSE)","v":{"$error":"#N/A"}},{"$f":"VLOOKUP($I104,'Raw Ranking Data'!$D$23:$K$406,5,FALSE)","v":{"$error":"#N/A"}},{"$f":"VLOOKUP($I104,'Raw Ranking Data'!$D$23:$K$406,7,FALSE)","v":{"$error":"#N/A"}}]
[null,null,null,null,null,null,null,null,null,null,{"$f":"VLOOKUP($I105,'Raw Ranking Data'!$D$23:$K$406,3,FALSE)","v":{"$error":"#N/A"}},{"$f":"VLOOKUP($I105,'Raw Ranking Data'!$D$23:$K$406,5,FALSE)","v":{"$error":"#N/A"}},{"$f":"VLOOKUP($I105,'Raw Ranking Data'!$D$23:$K$406,7,FALSE)","v":{"$error":"#N/A"}}]
[null,null,null,null,null,null,null,null,null,null,{"$f":"VLOOKUP($I106,'Raw Ranking Data'!$D$23:$K$406,3,FALSE)","v":{"$error":"#N/A"}},{"$f":"VLOOKUP($I106,'Raw Ranking Data'!$D$23:$K$406,5,FALSE)","v":{"$error":"#N/A"}},{"$f":"VLOOKUP($I106,'Raw Ranking Data'!$D$23:$K$406,7,FALSE)","v":{"$error":"#N/A"}}]
[null,null,null,null,null,null,null,null,null,null,{"$f":"VLOOKUP($I107,'Raw Ranking Data'!$D$23:$K$406,3,FALSE)","v":{"$error":"#N/A"}},{"$f":"VLOOKUP($I107,'Raw Ranking Data'!$D$23:$K$406,5,FALSE)","v":{"$error":"#N/A"}},{"$f":"VLOOKUP($I107,'Raw Ranking Data'!$D$23:$K$406,7,FALSE)","v":{"$error":"#N/A"}}]
[null,null,null,null,null,null,null,null,null,null,{"$f":"VLOOKUP($I108,'Raw Ranking Data'!$D$23:$K$406,3,FALSE)","v":{"$error":"#N/A"}},{"$f":"VLOOKUP($I108,'Raw Ranking Data'!$D$23:$K$406,5,FALSE)","v":{"$error":"#N/A"}},{"$f":"VLOOKUP($I108,'Raw Ranking Data'!$D$23:$K$406,7,FALSE)","v":{"$error":"#N/A"}}]
[null,null,null,null,null,null,null,null,null,null,{"$f":"VLOOKUP($I109,'Raw Ranking Data'!$D$23:$K$406,3,FALSE)","v":{"$error":"#N/A"}},{"$f":"VLOOKUP($I109,'Raw Ranking Data'!$D$23:$K$406,5,FALSE)","v":{"$error":"#N/A"}},{"$f":"VLOOKUP($I109,'Raw Ranking Data'!$D$23:$K$406,7,FALSE)","v":{"$error":"#N/A"}}]
[null,null,null,null,null,null,null,null,null,null,{"$f":"VLOOKUP($I110,'Raw Ranking Data'!$D$23:$K$406,3,FALSE)","v":{"$error":"#N/A"}},{"$f":"VLOOKUP($I110,'Raw Ranking Data'!$D$23:$K$406,5,FALSE)","v":{"$error":"#N/A"}},{"$f":"VLOOKUP($I110,'Raw Ranking Data'!$D$23:$K$406,7,FALSE)","v":{"$error":"#N/A"}}]
[null,null,null,null,null,null,null,null,null,null,{"$f":"VLOOKUP($I111,'Raw Ranking Data'!$D$23:$K$406,3,FALSE)","v":{"$error":"#N/A"}},{"$f":"VLOOKUP($I111,'Raw Ranking Data'!$D$23:$K$406,5,FALSE)","v":{"$error":"#N/A"}},{"$f":"VLOOKUP($I111,'Raw Ranking Data'!$D$23:$K$406,7,FALSE)","v":{"$error":"#N/A"}}]
[null,null,null,null,null,null,null,null,null,null,{"$f":"VLOOKUP($I112,'Raw Ranking Data'!$D$23:$K$406,3,FALSE)","v":{"$error":"#N/A"}},{"$f":"VLOOKUP($I112,'Raw Ranking Data'!$D$23:$K$406,5,FALSE)","v":{"$error":"#N/A"}},{"$f":"VLOOKUP($I112,'Raw Ranking Data'!$D$23:$K$406,7,FALSE)","v":{"$error":"#N/A"}}]
[null,null,null,null,null,null,null,null,null,null,{"$f":"VLOOKUP($I113,'Raw Ranking Data'!$D$23:$K$406,3,FALSE)","v":{"$error":"#N/A"}},{"$f":"VLOOKUP($I113,'Raw Ranking Data'!$D$23:$K$406,5,FALSE)","v":{"$error":"#N/A"}},{"$f":"VLOOKUP($I113,'Raw Ranking Data'!$D$23:$K$406,7,FALSE)","v":{"$error":"#N/A"}}]
[null,null,null,null,null,null,null,null,null,null,{"$f":"VLOOKUP($I114,'Raw Ranking Data'!$D$23:$K$406,3,FALSE)","v":{"$error":"#N/A"}},{"$f":"VLOOKUP($I114,'Raw Ranking Data'!$D$23:$K$406,5,FALSE)","v":{"$error":"#N/A"}},{"$f":"VLOOKUP($I114,'Raw Ranking Data'!$D$23:$K$406,7,FALSE)","v":{"$error":"#N/A"}}]
[null,null,null,null,null,null,null,null,null,null,{"$f":"VLOOKUP($I115,'Raw Ranking Data'!$D$23:$K$406,3,FALSE)","v":{"$error":"#N/A"}},{"$f":"VLOOKUP($I115,'Raw Ranking Data'!$D$23:$K$406,5,FALSE)","v":{"$error":"#N/A"}},{"$f":"VLOOKUP($I115,'Raw Ranking Data'!$D$23:$K$406,7,FALSE)","v":{"$error":"#N/A"}}]
[null,null,null,null,null,null,null,null,null,null,{"$f":"VLOOKUP($I116,'Raw Ranking Data'!$D$23:$K$406,3,FALSE)","v":{"$error":"#N/A"}},{"$f":"VLOOKUP($I116,'Raw Ranking Data'!$D$23:$K$406,5,FALSE)","v":{"$error":"#N/A"}},{"$f":"VLOOKUP($I116,'Raw Ranking Data'!$D$23:$K$406,7,FALSE)","v":{"$error":"#N/A"}}]
[null,null,null,null,null,null,null,null,null,null,{"$f":"VLOOKUP($I117,'Raw Ranking Data'!$D$23:$K$406,3,FALSE)","v":{"$error":"#N/A"}},{"$f":"VLOOKUP($I117,'Raw Ranking Data'!$D$23:$K$406,5,FALSE)","v":{"$error":"#N/A"}},{"$f":"VLOOKUP($I117,'Raw Ranking Data'!$D$23:$K$406,7,FALSE)","v":{"$error":"#N/A"}}]

{"sheet":"Raw Ranking Data","index":7,"n_rows":23,"n_cols":12,"rows_kept":23,"cut":false,"hidden":false,"merged":[]}
[]
[]
[]
[]
[]
[]
[]
[]
[]
[]
[]
[]
[]
[]
[]
[]
[]
[]
[]
[]
[]
[]
[null,"Date","URL","Keyword","Tags","google.com","Change","bing.com","Change","yahoo.com","Change","Vol."]

{"sheet":"Tag Ranking Analysis","index":8,"n_rows":39,"n_cols":23,"rows_kept":39,"cut":false,"hidden":false,"merged":[[64,14,67,14],[68,14,71,14],[72,14,75,14],[76,14,79,14]]}
[]
["Month","Tag/Category","Rank 1-3","Rank 4-10","Rank 11-20","Rank 21-50","Rank 50+","NR","Vol.",null,null,null,null,null,null,null,{"$f":"Q3&\" Vertical\"","v":"(highlight) Vertical"}]
["2013-09-01","Example 1",6,0,3,2,1,0,2798,null,null,null,null,null,null,null,"(highlight)","NR","Rank 50+","Rank 21-50","Rank 11-20","Rank 4-10","Rank 1-3"]
["2013-09-01","Example 2",1,15,7,2,2,2,2061,null,null,null,null,null,null,null,"2013-06-01",{"$f":"SUMIFS($H:$H,$B:$B,$Q$3,$A:$A,$Q4)","v":0},{"$f":"SUMIFS($G:$G,$B:$B,$Q$3,$A:$A,$Q4)","v":0},{"$f":"SUMIFS($F:$F,$B:$B,$Q$3,$A:$A,$Q4)","v":0},{"$f":"SUMIFS($E:$E,$B:$B,$Q$3,$A:$A,$Q4)","v":0},{"$f":"SUMIFS($D:$D,$B:$B,$Q$3,$A:$A,$Q4)","v":0},{"$f":"SUMIFS($C:$C,$B:$B,$Q$3,$A:$A,$Q4)","v":0}]
["2013-09-01","Example 3",11,26,18,5,7,18,15405,null,null,null,null,null,null,null,"2013-07-01",0,0,0,0,0,0]
["2013-09-01","Example 4",10,11,8,1,2,2,4391,null,null,null,null,null,null,null,"2013-08-01",0,0,0,0,0,0]
["2013-09-01","Example 5",0,0,8,1,1,3,3695,null,null,null,null,null,null,null,"2013-09-01",0,0,0,0,0,0]
["2013-09-01","Example 6",0,0,0,0,1,11,4500,null,null,null,null,null,null,null,"2013-10-01",0,0,0,0,0,0]
["2013-10-01",null,null,null,null,null,null,null,null,null,null,null,null,null,null,null,"2013-11-01",0,0,0,0,0,0]
["2013-10-01",null,null,null,null,null,null,null,null,null,null,null,null,null,null,null,"2013-12-01",0,0,0,0,0,0]
["2013-10-01",null,null,null,null,null,null,null,null,null,null,null,null,null,null,null,"2014-01-01",0,0,0,0,0,0]
["2013-10-01",null,null,null,null,null,null,null,null,null,null,null,null,null,null,null,"2014-02-01",0,0,0,0,0,0]
["2013-10-01",null,null,null,null,null,null,null,null,null,null,null,null,null,null,null,"2014-03-01",0,0,0,0,0,0]
["2013-10-01",null,null,null,null,null,null,null,null,null,null,null,null,null,null,null,"2014-04-01",0,0,0,0,0,0]
["2013-11-01",null,null,null,null,null,null,null,null,null,null,null,null,null,null,null,"2014-05-01",0,0,0,0,0,0]
["2013-11-01",null,null,null,null,null,null,null,null,null,null,null,null,null,null,null,"2014-06-01",0,0,0,0,0,0]
["2013-11-01",null,null,null,null,null,null,null,null,null,null,null,null,null,null,null,"2014-07-01",0,0,0,0,0,0]
["2013-11-01",null,null,null,null,null,null,null,null,null,null,null,null,null,null,null,"2014-08-01",0,0,0,0,0,0]
["2013-11-01",null,null,null,null,null,null,null,null,null,null,null,null,null,null,null,"2014-09-01",0,0,0,0,0,0]
["2013-11-01"]
["2013-12-01"]
["2013-12-01",null,null,null,null,null,null,null,null,null,null,null,null,null,null,null,{"$f":"Q23&\" keywords Verticals\"","v":"all keywords Verticals"}]
["2013-12-01",null,null,null,null,null,null,null,null,null,null,"HIGH IMPACT WORDS","RANK","CHANGE","VOLUME",null,"all","NR","Rank 50+","Rank 21-50","Rank 11-20","Rank 4-10","Rank 1-3"]
["2013-12-01",null,null,null,null,null,null,null,null,null,1,"Example Keyword 1",{"$f":"VLOOKUP(L24,'Raw Ranking Data'!D:F,3,FALSE)","v":{"$error":"#N/A"}},{"$f":"VLOOKUP(L24,'Raw Ranking Data'!D:G,4,FALSE)","v":{"$error":"#N/A"}},{"$f":"VLOOKUP(L24,'Raw Ranking Data'!D:L,9,FALSE)","v":{"$error":"#N/A"}},null,"2013-06-01",{"$f":"SUMIFS($H:$H,$B:$B,$Q$23,$A:$A,$Q24)","v":0},{"$f":"SUMIFS($G:$G,$B:$B,$Q$23,$A:$A,$Q24)","v":0},{"$f":"SUMIFS($F:$F,$B:$B,$Q$23,$A:$A,$Q24)","v":0},{"$f":"SUMIFS($E:$E,$B:$B,$Q$23,$A:$A,$Q24)","v":0},{"$f":"SUMIFS($D:$D,$B:$B,$Q$23,$A:$A,$Q24)","v":0},{"$f":"SUMIFS($C:$C,$B:$B,$Q$23,$A:$A,$Q24)","v":0}]
["2013-12-01",null,null,null,null,null,null,null,null,null,2,"Example Keyword 2",{"$f":"VLOOKUP(L25,'Raw Ranking Data'!D:F,3,FALSE)","v":{"$error":"#N/A"}},{"$f":"VLOOKUP(L25,'Raw Ranking Data'!D:G,4,FALSE)","v":{"$error":"#N/A"}},{"$f":"VLOOKUP(L25,'Raw Ranking Data'!D:L,9,FALSE)","v":{"$error":"#N/A"}},null,"2013-07-01",0,0,0,0,0,0]
["2013-12-01",null,null,null,null,null,null,null,null,null,3,"Example Keyword 3",{"$f":"VLOOKUP(L26,'Raw Ranking Data'!D:F,3,FALSE)","v":{"$error":"#N/A"}},{"$f":"VLOOKUP(L26,'Raw Ranking Data'!D:G,4,FALSE)","v":{"$error":"#N/A"}},{"$f":"VLOOKUP(L26,'Raw Ranking Data'!D:L,9,FALSE)","v":{"$error":"#N/A"}},null,"2013-08-01",0,0,0,0,0,0]
[null,null,null,null,null,null,null,null,null,null,4,"Example Keyword 4",{"$f":"VLOOKUP(L27,'Raw Ranking Data'!D:F,3,FALSE)","v":{"$error":"#N/A"}},{"$f":"VLOOKUP(L27,'Raw Ranking Data'!D:G,4,FALSE)","v":{"$error":"#N/A"}},{"$f":"VLOOKUP(L27,'Raw Ranking Data'!D:L,9,FALSE)","v":{"$error":"#N/A"}},null,"2013-09-01",0,0,0,0,0,0]
[null,null,null,null,null,null,null,null,null,null,5,"Example Keyword 5",{"$f":"VLOOKUP(L28,'Raw Ranking Data'!D:F,3,FALSE)","v":{"$error":"#N/A"}},{"$f":"VLOOKUP(L28,'Raw Ranking Data'!D:G,4,FALSE)","v":{"$error":"#N/A"}},{"$f":"VLOOKUP(L28,'Raw Ranking Data'!D:L,9,FALSE)","v":{"$error":"#N/A"}},null,"2013-10-01",0,0,0,0,0,0]
[null,null,null,null,null,null,null,null,null,null,6,"Example Keyword 6",{"$f":"VLOOKUP(L29,'Raw Ranking Data'!D:F,3,FALSE)","v":{"$error":"#N/A"}},{"$f":"VLOOKUP(L29,'Raw Ranking Data'!D:G,4,FALSE)","v":{"$error":"#N/A"}},{"$f":"VLOOKUP(L29,'Raw Ranking Data'!D:L,9,FALSE)","v":{"$error":"#N/A"}},null,"2013-11-01",0,0,0,0,0,0]
[null,null,null,null,null,null,null,null,null,null,7,"Example Keyword 7",{"$f":"VLOOKUP(L30,'Raw Ranking Data'!D:F,3,FALSE)","v":{"$error":"#N/A"}},{"$f":"VLOOKUP(L30,'Raw Ranking Data'!D:G,4,FALSE)","v":{"$error":"#N/A"}},{"$f":"VLOOKUP(L30,'Raw Ranking Data'!D:L,9,FALSE)","v":{"$error":"#N/A"}},null,"2013-12-01",0,0,0,0,0,0]
[null,null,null,null,null,null,null,null,null,null,8,"Example Keyword 8",{"$f":"VLOOKUP(L31,'Raw Ranking Data'!D:F,3,FALSE)","v":{"$error":"#N/A"}},{"$f":"VLOOKUP(L31,'Raw Ranking Data'!D:G,4,FALSE)","v":{"$error":"#N/A"}},{"$f":"VLOOKUP(L31,'Raw Ranking Data'!D:L,9,FALSE)","v":{"$error":"#N/A"}},null,"2014-01-01",0,0,0,0,0,0]
[null,null,null,null,null,null,null,null,null,null,9,"Example Keyword 9",{"$f":"VLOOKUP(L32,'Raw Ranking Data'!D:F,3,FALSE)","v":{"$error":"#N/A"}},{"$f":"VLOOKUP(L32,'Raw Ranking Data'!D:G,4,FALSE)","v":{"$error":"#N/A"}},{"$f":"VLOOKUP(L32,'Raw Ranking Data'!D:L,9,FALSE)","v":{"$error":"#N/A"}},null,"2014-02-01",0,0,0,0,0,0]
[null,null,null,null,null,null,null,null,null,null,10,"Example Keyword 10",{"$f":"VLOOKUP(L33,'Raw Ranking Data'!D:F,3,FALSE)","v":{"$error":"#N/A"}},{"$f":"VLOOKUP(L33,'Raw Ranking Data'!D:G,4,FALSE)","v":{"$error":"#N/A"}},{"$f":"VLOOKUP(L33,'Raw Ranking Data'!D:L,9,FALSE)","v":{"$error":"#N/A"}},null,"2014-03-01",0,0,0,0,0,0]
[null,null,null,null,null,null,null,null,null,null,11,"Example Keyword 11",{"$f":"VLOOKUP(L34,'Raw Ranking Data'!D:F,3,FALSE)","v":{"$error":"#N/A"}},{"$f":"VLOOKUP(L34,'Raw Ranking Data'!D:G,4,FALSE)","v":{"$error":"#N/A"}},{"$f":"VLOOKUP(L34,'Raw Ranking Data'!D:L,9,FALSE)","v":{"$error":"#N/A"}},null,"2014-04-01",0,0,0,0,0,0]
[null,null,null,null,null,null,null,null,null,null,12,"Example Keyword 12",{"$f":"VLOOKUP(L35,'Raw Ranking Data'!D:F,3,FALSE)","v":{"$error":"#N/A"}},{"$f":"VLOOKUP(L35,'Raw Ranking Data'!D:G,4,FALSE)","v":{"$error":"#N/A"}},{"$f":"VLOOKUP(L35,'Raw Ranking Data'!D:L,9,FALSE)","v":{"$error":"#N/A"}},null,"2014-05-01",0,0,0,0,0,0]
[null,null,null,null,null,null,null,null,null,null,13,"Example Keyword 13",{"$f":"VLOOKUP(L36,'Raw Ranking Data'!D:F,3,FALSE)","v":{"$error":"#N/A"}},{"$f":"VLOOKUP(L36,'Raw Ranking Data'!D:G,4,FALSE)","v":{"$error":"#N/A"}},{"$f":"VLOOKUP(L36,'Raw Ranking Data'!D:L,9,FALSE)","v":{"$error":"#N/A"}},null,"2014-06-01",0,0,0,0,0,0]
[null,null,null,null,null,null,null,null,null,null,14,"Example Keyword 14",{"$f":"VLOOKUP(L37,'Raw Ranking Data'!D:F,3,FALSE)","v":{"$error":"#N/A"}},{"$f":"VLOOKUP(L37,'Raw Ranking Data'!D:G,4,FALSE)","v":{"$error":"#N/A"}},{"$f":"VLOOKUP(L37,'Raw Ranking Data'!D:L,9,FALSE)","v":{"$error":"#N/A"}},null,"2014-07-01",0,0,0,0,0,0]
[null,null,null,null,null,null,null,null,null,null,15,"Example Keyword 15",{"$f":"VLOOKUP(L38,'Raw Ranking Data'!D:F,3,FALSE)","v":{"$error":"#N/A"}},{"$f":"VLOOKUP(L38,'Raw Ranking Data'!D:G,4,FALSE)","v":{"$error":"#N/A"}},{"$f":"VLOOKUP(L38,'Raw Ranking Data'!D:L,9,FALSE)","v":{"$error":"#N/A"}},null,"2014-08-01",0,0,0,0,0,0]
[null,null,null,null,null,null,null,null,null,null,null,null,null,null,null,null,"2014-09-01",0,0,0,0,0,0]